{"text_format":"1","workbook":"xlsx","n_sheets":6,"sheets":["Cover Page","Project Information","ESD - EEM","Non-EE Drivers","Showstoppers","Dropdowns"],"not_rendered":{"charts":0,"images":2,"macros":1,"external_links":2,"defined_names":3,"comments":0,"pivot_tables":0},"unopened":[],"bounds":{"document_bytes":16777216,"sheet_cells":100000,"rows_first":2000,"rows_last":500,"rows_between":2000,"halvings":0,"cell_chars":16384,"cell_head_chars":4096},"cells_cut":0,"cells_raw":0,"read":"whole","date_system":"1900"}

{"sheet":"Cover Page","index":0,"n_rows":14,"n_cols":9,"rows_kept":14,"cut":false,"hidden":false,"merged":[[3,0,3,11]]}
[null,"Early Screening Document for NMEC & HOPPs Projects"]
[]
[]
["SCE Early Screening Document Instructions"]
[]
[null,"Project Developers are expected to fill out all fields in ",null,null,null,null,null,"orange","in the \"Project Information\" and"]
[null,"\"ESD -EEM\" sheets of this form. Once completed, please email the completed form to:"]
[null,null,"CustomReviews@sce.com"]
[null,"with the email subject in the following format:"]
[null,null,"ESD_[Project Name]"]
[]
[null,"For questions regarding this form, please email CustomReviews@sce.com with your inquiry."]
[]
[null,"Please ensure to Enable Editing and/or Enable Content in order to properly complete this document."]

{"sheet":"Project Information","index":1,"n_rows":45,"n_cols":27,"rows_kept":45,"cut":false,"hidden":false,"merged":[[3,1,3,2],[4,1,4,2],[7,1,7,2],[16,1,16,2],[24,1,24,2],[35,1,35,2],[30,1,30,2],[25,1,25,2],[28,1,28,2],[27,1,27,2],[26,1,26,2]]}
[null,"Early Screening Document for SCE NMEC & HOPPs Projects",null,null,null,null,null,null,null,null,null,null,null,null,null,null,null,null,null,null,null,null,null,null,null,null,"Agricultural"]
[null,null,null,null,null,null,null,null,null,null,null,null,null,null,null,null,null,null,null,null,null,null,null,null,null,null,"Assembly"]
[null,null,null,null,null,null,null,null,null,null,null,null,null,null,null,null,null,null,null,null,null,null,null,null,null,null,"Education - Primary School"]
[null,"Southern California Edison",null,null,null,null,null,null,null,null,null,null,null,null,null,null,null,null,null,null,null,null,null,null,null,null,"Education - Secondary School"]
[null,"Early Screening Document NMEC & HOPPs ver. 2.00",null,null,null,null,null,null,null,null,null,null,null,null,null,null,null,null,null,null,null,null,null,null,null,null,"Education - Relocatable Classroom"]
[null," 1st Submittal Date:",null,null,null,null,null,null,null,null,null,null,null,null,null,null,null,null,null,null,null,null,null,null,null,null,"Education - Community College"]
[null," 2nd Submittal Date:",null,null,null,null,null,null,null,null,null,null,null,null,null,null,null,null,null,null,null,null,null,null,null,null,"Education - University"]
[null,"Project Developer Information",null,null,null,null,null,null,null,null,null,null,null,null,null,null,null,null,null,null,null,null,null,null,null,null,"Health/Medical - Hospital"]
[null,"Project Developer Group","--Select--",null,null,null,null,null,null,null,null,null,null,null,null,null,null,null,null,null,null,null,null,null,null,null,"Health/Medical - Nursing Home"]
[null,"Project Developer  - Company Name ",null,null,null,null,null,null,null,null,null,null,null,null,null,null,null,null,null,null,null,null,null,null,null,null,"Health/Medical - Clinic"]
[null,"Project Developer  - Point of Contact (POC) ",null,null,null,null,null,null,null,null,null,null,null,null,null,null,null,null,null,null,null,null,null,null,null,null,"Lodging - Hotel"]
[null,"Project Developer  - POC - Phone Number",null,null,null,null,null,null,null,null,null,null,null,null,null,null,null,null,null,null,null,null,null,null,null,null,"Lodging - Guest Rooms"]
[null,"Project Developer  - POC - Email",null,null,null,null,null,null,null,null,null,null,null,null,null,null,null,null,null,null,null,null,null,null,null,null,"Lodging - Motel"]
[null,"BCD Account Manager (if assigned)",null,null,null,null,null,null,null,null,null,null,null,null,null,null,null,null,null,null,null,null,null,null,null,null,"Manufacturing - Bio/Tech"]
[null,"Project Field Engineer (if applicable)",null,null,null,null,null,null,null,null,null,null,null,null,null,null,null,null,null,null,null,null,null,null,null,null,"Manufacturing - Light Industrial"]
[null,"Pump Test Engineer (if applicable)",null,null,null,null,null,null,null,null,null,null,null,null,null,null,null,null,null,null,null,null,null,null,null,null,"Industrial"]
[null,"Utility Customer Information",null,null,null,null,null,null,null,null,null,null,null,null,null,null,null,null,null,null,null,null,null,null,null,null,"Miscellaneous Commercial"]
[null,"Business Sector ","--Select--",null,null,null,null,null,null,null,null,null,null,null,null,null,null,null,null,null,null,null,null,null,null,null,"Office - Large"]
[null,"Program Type","--Select--",null,null,null,null,null,null,null,null,null,null,null,null,null,null,null,null,null,null,null,null,null,null,null,"Office - Small"]
[null,"Program Name (if Program Manager unknown)",null,null,null,null,null,null,null,null,null,null,null,null,null,null,null,null,null,null,null,null,null,null,null,null,"Restaurant - Fast Food"]
[null,"Program Manager (if Program Name unknown) ",null,null,null,null,null,null,null,null,null,null,null,null,null,null,null,null,null,null,null,null,null,null,null,null,"Restaurant - Site Down"]
[null,"Customer  - Company Name ",null,null,null,null,null,null,null,null,null,null,null,null,null,null,null,null,null,null,null,null,null,null,null,null,"Retail - Multistory Large"]
[null,"Customer  - Contact Person for Project Questions",null,null,null,null,null,null,null,null,null,null,null,null,null,null,null,null,null,null,null,null,null,null,null,null,"Retail - Single-Story Large"]
[null,"Customer  - POC - Phone Number",null,null,null,null,null,null,null,null,null,null,null,null,null,null,null,null,null,null,null,null,null,null,null,null,"Retail - Small"]
[null,"Project Site Information",null,null,null,null,null,null,null,null,null,null,null,null,null,null,null,null,null,null,null,null,null,null,null,null,"Storage - Conditioned"]
[null,"Project Site Description (Building type, Conditioned/Unconditioned square footage, Climate Zone)",null,null,null,null,null,null,null,null,null,null,null,null,null,null,null,null,null,null,null,null,null,null,null,null,"Storage - Unconditioned"]
[null,null,null,null,null,null,null,null,null,null,null,null,null,null,null,null,null,null,null,null,null,null,null,null,null,null,"Transportation - Communication - Utilities"]
[null,"Project Address (#, street, city, state, zip)  ",null,null,null,null,null,null,null,null,null,null,null,null,null,null,null,null,null,null,null,null,null,null,null,null,"Warehouse - Refrigerated"]
[]
[null,"Service Account #"]
[null,"Energy Use, Billing, Onsite Generation"]
[null,"Does the customer pay Public Purpose Programs (PPP) charges in their utility bill?","--Select--"]
[null,"Does the customer get power from agencies other than the SCE?","--Select--"]
[null,"Describe any customer generation (solar, wind, fuel cell, cogeneration, battery storage, etc.) present at the site - do not include backup generators: "]
[null,"Number of Energy Efficiency Measures in Project"]
[null,"NMEC/HOPPs Questions"]
[null,"Project has been assessed for goddness-of-fit and report is included in addition to this ESD?","--Select--"]
[null,"Goodness of fit screening analysis filename: "]
[null,"DEER Building Type","--Select--"]
[null,"Typical Operating Hours per Week"]
[null,"Square Footage & Year Constructed"]
[null,"If building has distributed generation resource (solar, cogeneration, etc.) is metering available with appropriate interval detail to remove the load from the model?","--Select--"]
[null,"What is the annual energy use and projected level of savings for the project?\nPrograms targeting savings that comprise less than 10% of annual consumption must provide a rationale and explanation of how savings will be distinguishable from normal variations in consumption."]
[null,"Please describe previous utility sponsored retrofits or energy efficiency measures that have occurred in the building within the last five years."]
[null,"Please describe any non-routine events that may have occurred during the last two years."]

{"sheet":"ESD - EEM","index":2,"n_rows":116,"n_cols":45,"rows_kept":116,"cut":false,"hidden":false,"merged":[[83,31,83,32],[91,31,91,32],[92,31,92,32],[94,31,94,32],[95,31,95,32],[101,31,101,32],[102,31,102,32],[94,40,94,41],[95,40,95,41],[101,40,101,41],[102,40,102,41],[83,37,83,38],[91,37,91,38],[92,37,92,38],[94,37,94,38],[95,37,95,38],[101,37,101,38],[102,37,102,38],[102,25,102,26],[102,22,102,23],[97,22,97,23],[98,22,98,23],[104,40,104,41],[105,40,105,41],[108,40,108,41],[97,40,97,41],[98,40,98,41],[104,37,104,38],[101,22,101,23],[97,28,97,29],[98,28,98,29],[97,31,97,32],[98,31,98,32],[97,34,97,35],[98,34,98,35],[79,40,79,41],[80,40,80,41],[82,40,82,41],[83,40,83,41],[91,40,91,41],[115,1,115,2],[116,1,116,2],[109,1,109,2],[111,1,111,2],[112,1,112,2],[94,34,94,35],[95,34,95,35],[101,34,101,35],[102,34,102,35],[104,34,104,35],[105,34,105,35],[108,34,108,35],[94,28,94,29],[95,28,95,29],[101,28,101,29],[102,28,102,29],[104,28,104,29],[105,28,105,29],[108,28,108,29],[59,40,59,41],[61,40,61,41],[62,40,62,41],[64,40,64,41],[97,37,97,38],[98,37,98,38],[74,34,75,34],[1,40,1,41],[2,40,2,41],[14,40,14,41],[15,40,15,41],[17,40,17,41],[18,40,18,41],[20,40,20,41],[21,40,21,41],[23,40,23,41],[82,37,82,38],[34,40,34,41],[35,40,35,41],[38,40,38,41],[40,40,40,41],[41,40,41,41],[43,40,43,41],[44,40,44,41],[65,40,65,41],[67,40,67,41],[64,37,64,38],[65,37,65,38],[67,37,67,38],[68,37,68,38],[70,37,70,38],[71,37,71,38],[74,37,75,37],[68,40,68,41],[70,40,70,41],[71,40,71,41],[74,40,75,40],[34,37,34,38],[44,37,44,38],[46,37,46,38],[47,37,47,38],[49,37,49,38],[50,37,50,38],[52,37,52,38],[53,37,53,38],[55,37,55,38],[1,37,1,38],[2,37,2,38],[14,37,14,38],[15,37,15,38],[17,37,17,38],[18,37,18,38],[20,37,20,38],[21,37,21,38],[23,37,23,38],[59,34,59,35],[61,34,61,35],[62,34,62,35],[64,34,64,35],[65,34,65,35],[67,34,67,35],[68,34,68,35],[79,37,79,38],[80,37,80,38],[59,37,59,38],[61,37,61,38],[68,31,68,32],[70,31,70,32],[71,31,71,32],[74,31,75,31],[34,34,34,35],[35,34,35,35],[35,37,35,38],[38,34,38,35],[40,34,40,35],[38,37,38,38],[40,37,40,38],[41,37,41,38],[43,37,43,38],[70,34,70,35],[71,34,71,35],[41,34,41,35],[43,34,43,35],[44,34,44,35],[46,34,46,35],[47,34,47,35],[49,34,49,35],[50,34,50,35],[52,34,52,35],[53,34,53,35],[59,31,59,32],[61,31,61,32],[62,31,62,32],[64,31,64,32],[62,37,62,38],[104,31,104,32],[1,34,1,35],[2,34,2,35],[14,34,14,35],[15,34,15,35],[17,34,17,35],[18,34,18,35],[20,34,20,35],[21,34,21,35],[23,34,23,35],[79,34,79,35],[80,34,80,35],[82,34,82,35],[83,34,83,35],[91,34,91,35],[55,34,55,35],[56,34,56,35],[65,31,65,32],[67,31,67,32],[1,31,1,32],[2,31,2,32],[14,31,14,32],[15,31,15,32],[17,31,17,32],[18,31,18,32],[20,31,20,32],[21,31,21,32],[23,31,23,32],[34,31,34,32],[68,28,68,29],[70,28,70,29],[71,28,71,29],[74,28,75,28],[79,28,79,29],[80,28,80,29],[82,28,82,29],[34,28,34,29],[38,31,38,32],[40,31,40,32],[41,31,41,32],[43,31,43,32],[44,31,44,32],[46,31,46,32],[47,31,47,32],[49,31,49,32],[50,31,50,32],[79,31,79,32],[80,31,80,32],[82,31,82,32],[52,31,52,32],[53,31,53,32],[55,31,55,32],[83,28,83,29],[35,31,35,32],[91,28,91,29],[55,28,55,29],[56,28,56,29],[58,28,58,29],[59,28,59,29],[61,28,61,29],[62,28,62,29],[64,28,64,29],[65,28,65,29],[67,28,67,29],[41,28,41,29],[43,28,43,29],[44,28,44,29],[46,28,46,29],[47,28,47,29],[49,28,49,29],[50,28,50,29],[52,28,52,29],[53,28,53,29],[35,28,35,29],[38,28,38,29],[40,28,40,29],[1,28,1,29],[2,28,2,29],[14,28,14,29],[15,28,15,29],[17,28,17,29],[18,28,18,29],[20,28,20,29],[21,28,21,29],[23,28,23,29],[23,43,23,44],[24,1,24,2],[24,4,24,5],[24,7,24,8],[24,10,24,11],[24,13,24,14],[24,16,24,17],[24,19,24,20],[24,22,24,23],[24,25,24,26],[24,43,24,44],[24,28,24,29],[24,34,24,35],[24,40,24,41],[23,16,23,17],[23,19,23,20],[24,37,24,38],[23,7,23,8],[24,31,24,32],[70,25,70,26],[71,25,71,26],[74,25,75,25],[59,25,59,26],[70,13,70,14],[71,13,71,14],[95,4,95,5],[95,7,95,8],[95,10,95,11],[95,13,95,14],[95,16,95,17],[95,19,95,20],[95,22,95,23],[95,25,95,26],[94,10,94,11],[94,13,94,14],[94,16,94,17],[94,19,94,20],[94,22,94,23],[94,25,94,26],[79,25,79,26],[80,25,80,26],[82,25,82,26],[83,25,83,26],[68,1,68,2],[68,4,68,5],[68,7,68,8],[68,10,68,11],[68,13,68,14],[68,16,68,17],[68,19,68,20],[68,22,68,23],[68,25,68,26],[67,1,67,2],[67,4,67,5],[67,7,67,8],[67,10,67,11],[67,13,67,14],[67,16,67,17],[67,19,67,20],[67,22,67,23],[67,25,67,26],[102,43,102,44],[71,43,71,44],[74,43,75,43],[79,43,79,44],[80,43,80,44],[82,43,82,44],[83,43,83,44],[101,43,101,44],[94,43,94,44],[95,43,95,44],[97,43,97,44],[98,43,98,44],[70,43,70,44],[67,43,67,44],[68,43,68,44],[49,43,49,44],[50,43,50,44],[55,43,55,44],[56,43,56,44],[52,43,52,44],[53,43,53,44],[61,25,61,26],[62,25,62,26],[64,25,64,26],[65,25,65,26],[46,25,46,26],[47,25,47,26],[49,25,49,26],[1,43,1,44],[2,43,2,44],[14,43,14,44],[15,43,15,44],[17,43,17,44],[18,43,18,44],[34,43,34,44],[35,43,35,44],[38,43,38,44],[58,43,58,44],[59,43,59,44],[61,43,61,44],[62,43,62,44],[64,43,64,44],[65,43,65,44],[46,43,46,44],[47,43,47,44],[40,43,40,44],[41,43,41,44],[43,43,43,44],[44,43,44,44],[56,31,56,32],[58,31,58,32],[58,34,58,35],[56,37,56,38],[58,37,58,38],[52,40,52,41],[53,40,53,41],[55,40,55,41],[56,40,56,41],[58,40,58,41],[46,40,46,41],[47,40,47,41],[49,40,49,41],[50,40,50,41],[34,25,34,26],[35,25,35,26],[38,25,38,26],[40,25,40,26],[41,25,41,26],[43,25,43,26],[44,25,44,26],[58,25,58,26],[55,25,55,26],[56,25,56,26],[52,25,52,26],[53,25,53,26],[50,25,50,26],[1,25,1,26],[2,25,2,26],[14,25,14,26],[15,25,15,26],[17,25,17,26],[18,25,18,26],[23,25,23,26],[14,22,14,23],[15,22,15,23],[1,22,1,23],[2,22,2,23],[17,22,17,23],[18,22,18,23],[34,22,34,23],[35,22,35,23],[55,22,55,23],[49,22,49,23],[23,22,23,23],[56,22,56,23],[52,22,52,23],[53,22,53,23],[50,22,50,23],[47,22,47,23],[38,22,38,23],[40,22,40,23],[41,22,41,23],[43,22,43,23],[44,22,44,23],[38,16,38,17],[40,16,40,17],[34,16,34,17],[35,16,35,17],[34,19,34,20],[35,19,35,20],[38,19,38,20],[40,19,40,20],[43,13,43,14],[41,19,41,20],[43,19,43,20],[34,13,34,14],[35,13,35,14],[38,13,38,14],[41,13,41,14],[44,13,44,14],[47,13,47,14],[53,13,53,14],[74,7,75,7],[79,7,79,8],[80,7,80,8],[59,7,59,8],[61,7,61,8],[80,10,80,11],[74,13,75,13],[80,13,80,14],[83,7,83,8],[101,7,101,8],[102,7,102,8],[79,4,79,5],[80,4,80,5],[82,4,82,5],[82,7,82,8],[91,4,91,5],[91,7,91,8],[94,4,94,5],[94,7,94,8],[98,4,98,5],[97,7,97,8],[98,7,98,8],[74,4,75,4],[83,4,83,5],[1,4,1,5],[2,4,2,5],[14,4,14,5],[15,4,15,5],[17,4,17,5],[18,4,18,5],[23,4,23,5],[58,4,58,5],[59,4,59,5],[55,4,55,5],[52,4,52,5],[34,4,34,5],[35,4,35,5],[38,4,38,5],[40,4,40,5],[41,4,41,5],[49,4,49,5],[50,4,50,5],[43,4,43,5],[44,4,44,5],[46,4,46,5],[47,4,47,5],[43,7,43,8],[44,7,44,8],[40,7,40,8],[47,7,47,8],[49,7,49,8],[49,10,49,11],[41,7,41,8],[58,7,58,8],[55,7,55,8],[52,7,52,8],[55,10,55,11],[50,7,50,8],[50,10,50,11],[46,7,46,8],[46,10,46,11],[53,10,53,11],[70,4,70,5],[71,4,71,5],[62,7,62,8],[64,7,64,8],[64,13,64,14],[64,16,64,17],[64,19,64,20],[61,13,61,14],[61,16,61,17],[70,19,70,20],[65,19,65,20],[61,4,61,5],[65,4,65,5],[65,7,65,8],[70,7,70,8],[71,7,71,8],[62,4,62,5],[64,4,64,5],[62,13,62,14],[65,13,65,14],[15,10,15,11],[17,10,17,11],[14,16,14,17],[2,13,2,14],[2,16,2,17],[14,13,14,14],[15,19,15,20],[17,19,17,20],[56,19,56,20],[49,16,49,17],[49,19,49,20],[52,16,52,17],[52,19,52,20],[53,16,53,17],[53,19,53,20],[50,16,50,17],[50,19,50,20],[41,10,41,11],[43,10,43,11],[44,10,44,11],[46,13,46,14],[55,13,55,14],[56,13,56,14],[49,13,49,14],[50,1,50,2],[18,19,18,20],[17,13,17,14],[1,16,1,17],[15,16,15,17],[17,16,17,17],[1,13,1,14],[15,13,15,14],[18,16,18,17],[40,10,40,11],[18,10,18,11],[18,13,18,14],[40,13,40,14],[23,10,23,11],[23,13,23,14],[38,10,38,11],[34,10,34,11],[35,10,35,11],[1,19,1,20],[2,19,2,20],[14,19,14,20],[1,10,1,11],[2,10,2,11],[14,10,14,11],[1,1,1,2],[17,1,17,2],[18,1,18,2],[65,1,65,2],[64,1,64,2],[40,1,40,2],[43,1,43,2],[58,1,58,2],[44,1,44,2],[46,1,46,2],[62,1,62,2],[2,1,2,2],[38,1,38,2],[14,1,14,2],[15,1,15,2],[34,1,34,2],[35,1,35,2],[23,1,23,2],[59,1,59,2],[61,1,61,2],[41,1,41,2],[49,1,49,2],[55,1,55,2],[52,1,52,2],[1,7,1,8],[2,7,2,8],[14,7,14,8],[15,7,15,8],[17,7,17,8],[18,7,18,8],[38,7,38,8],[34,7,34,8],[35,7,35,8],[70,1,70,2],[47,1,47,2],[102,10,102,11],[58,10,58,11],[59,10,59,11],[101,10,101,11],[56,1,56,2],[56,4,56,5],[56,7,56,8],[53,1,53,2],[53,4,53,5],[53,7,53,8],[91,10,91,11],[102,1,102,2],[83,1,83,2],[80,1,80,2],[101,1,101,2],[79,1,79,2],[74,1,75,1],[82,1,82,2],[91,1,91,2],[94,1,94,2],[95,1,95,2],[71,1,71,2],[44,16,44,17],[59,16,59,17],[41,16,41,17],[43,16,43,17],[58,19,58,20],[59,19,59,20],[62,16,62,17],[58,16,58,17],[62,19,62,20],[61,19,61,20],[46,19,46,20],[46,22,46,23],[47,16,47,17],[70,16,70,17],[46,16,46,17],[65,16,65,17],[101,13,101,14],[74,16,75,16],[82,16,82,17],[59,13,59,14],[79,13,79,14],[79,16,79,17],[82,13,82,14],[74,19,75,19],[82,19,82,20],[91,13,91,14],[91,16,91,17],[91,19,91,20],[79,19,79,20],[58,13,58,14],[50,13,50,14],[52,13,52,14],[59,22,59,23],[61,22,61,23],[71,16,71,17],[55,16,55,17],[80,16,80,17],[91,22,91,23],[83,19,83,20],[74,22,75,22],[82,22,82,23],[70,22,70,23],[71,22,71,23],[62,22,62,23],[64,22,64,23],[80,22,80,23],[83,22,83,23],[65,22,65,23],[79,22,79,23],[58,22,58,23],[97,1,97,2],[98,1,98,2],[97,4,97,5],[80,19,80,20],[83,13,83,14],[83,16,83,17],[47,19,47,20],[55,19,55,20],[44,19,44,20],[56,16,56,17],[83,10,83,11],[61,10,61,11],[62,10,62,11],[64,10,64,11],[65,10,65,11],[79,10,79,11],[47,10,47,11],[70,10,70,11],[71,10,71,11],[56,10,56,11],[74,10,75,10],[82,10,82,11],[52,10,52,11],[71,19,71,20],[20,43,20,44],[21,1,21,2],[21,4,21,5],[21,7,21,8],[21,10,21,11],[21,13,21,14],[21,16,21,17],[21,19,21,20],[21,22,21,23],[21,25,21,26],[21,43,21,44],[20,1,20,2],[20,4,20,5],[20,7,20,8],[20,10,20,11],[20,13,20,14],[20,16,20,17],[20,19,20,20],[20,22,20,23],[20,25,20,26],[105,37,105,38],[91,25,91,26],[91,43,91,44],[92,1,92,2],[92,4,92,5],[92,7,92,8],[92,10,92,11],[92,13,92,14],[92,16,92,17],[92,19,92,20],[92,22,92,23],[92,25,92,26],[92,43,92,44],[92,28,92,29],[92,34,92,35],[92,40,92,41],[97,19,97,20],[98,19,98,20],[102,13,102,14],[102,16,102,17],[102,19,102,20],[101,4,101,5],[102,4,102,5],[101,16,101,17],[108,43,108,44],[108,31,108,32],[108,37,108,38],[108,1,108,2],[108,4,108,5],[108,7,108,8],[108,10,108,11],[108,13,108,14],[104,43,104,44],[105,1,105,2],[105,4,105,5],[105,7,105,8],[105,10,105,11],[105,13,105,14],[105,16,105,17],[105,19,105,20],[105,22,105,23],[105,25,105,26],[105,43,105,44],[104,1,104,2],[104,4,104,5],[104,7,104,8],[104,10,104,11],[104,13,104,14],[97,10,97,11],[98,10,98,11],[109,10,109,11],[109,16,109,17],[109,22,109,23],[109,28,109,29],[109,34,109,35],[108,16,108,17],[108,19,108,20],[108,22,108,23],[108,25,108,26],[104,16,104,17],[104,19,104,20],[104,22,104,23],[104,25,104,26],[97,13,97,14],[98,13,98,14],[97,16,97,17],[98,16,98,17],[97,25,97,26],[98,25,98,26],[105,31,105,32],[101,19,101,20],[101,25,101,26],[111,4,111,5],[112,4,112,5],[115,4,115,5],[116,4,116,5],[109,7,109,8],[111,7,111,8],[112,7,112,8],[115,7,115,8],[116,7,116,8],[109,4,109,5],[111,10,111,11],[112,10,112,11],[115,10,115,11],[116,10,116,11],[109,13,109,14],[111,13,111,14],[112,13,112,14],[115,13,115,14],[116,13,116,14],[111,16,111,17],[112,16,112,17],[115,16,115,17],[116,16,116,17],[109,19,109,20],[111,19,111,20],[112,19,112,20],[115,19,115,20],[116,19,116,20],[111,22,111,23],[112,22,112,23],[115,22,115,23],[116,22,116,23],[109,25,109,26],[111,25,111,26],[112,25,112,26],[115,25,115,26],[116,25,116,26],[111,28,111,29],[112,28,112,29],[115,28,115,29],[116,28,116,29],[109,31,109,32],[111,31,111,32],[112,31,112,32],[115,31,115,32],[116,31,116,32],[111,34,111,35],[112,34,112,35],[115,34,115,35],[116,34,116,35],[109,37,109,38],[111,37,111,38],[112,37,112,38],[115,37,115,38],[116,37,116,38],[109,40,109,41],[111,40,111,41],[112,40,112,41],[115,40,115,41],[116,40,116,41],[109,43,109,44],[111,43,111,44],[112,43,112,44],[115,43,115,44],[116,43,116,44]]}
[null,"Press \"Ctrl + a\" to expand text input areas with multiple input lines"]
[null,"EEM #1",null,null,"EEM #2",null,null,"EEM #3",null,null,"EEM #4",null,null,"EEM #5",null,null,"EEM #6",null,null,"EEM #7",null,null,"EEM #8",null,null,"EEM #9",null,null,"EEM #10",null,null,"EEM #11",null,null,"EEM #12",null,null,"EEM #13",null,null,"EEM #14",null,null,"EEM #15"]
[null,"Project Description",null,null,"Project Description",null,null,"Project Description",null,null,"Project Description",null,null,"Project Description",null,null,"Project Description",null,null,"Project Description",null,null,"Project Description",null,null,"Project Description",null,null,"Project Description",null,null,"Project Description",null,null,"Project Description",null,null,"Project Description",null,null,"Project Description",null,null,"Project Description"]
[]
[1,"Measure Application Type  ",null,1,"Measure Application Type  ",null,1,"Measure Application Type  ",null,1,"Measure Application Type  ",null,1,"Measure Application Type  ",null,1,"Measure Application Type  ",null,1,"Measure Application Type  ",null,1,"Measure Application Type  ",null,1,"Measure Application Type  ",null,1,"Measure Application Type  ",null,1,"Measure Application Type  ",null,1,"Measure Application Type  ",null,1,"Measure Application Type  ",null,1,"Measure Application Type  ",null,1,"Measure Application Type  "]
[]
[]
["a",{"$f":"IF(C5=\"Accelerated Replacement (AR)\",\"Estimated annual energy savings for the measure (kWh/yr)\",\"Estimated annual energy savings for the measure (kWh/yr)\")","v":"Estimated annual energy savings for the measure (kWh/yr)"},null,"a",{"$f":"IF(F5=\"Accelerated Replacement (AR)\",\"Estimated annual energy savings for the measure (kWh/yr)\",\"Estimated annual energy savings for the measure (kWh/yr)\")","v":"Estimated annual energy savings for the measure (kWh/yr)"},null,"a",{"$f":"IF(I5=\"Accelerated Replacement (AR)\",\"Estimated annual energy savings for the measure (kWh/yr)\",\"Estimated annual energy savings for the measure (kWh/yr)\")","v":"Estimated annual energy savings for the measure (kWh/yr)"},null,"a",{"$f":"IF(L5=\"Accelerated Replacement (AR)\",\"Estimated annual energy savings for the measure (kWh/yr)\",\"Estimated annual energy savings for the measure (kWh/yr)\")","v":"Estimated annual energy savings for the measure (kWh/yr)"},null,"a",{"$f":"IF(O5=\"Accelerated Replacement (AR)\",\"Estimated annual energy savings for the measure (kWh/yr)\",\"Estimated annual energy savings for the measure (kWh/yr)\")","v":"Estimated annual energy savings for the measure (kWh/yr)"},null,"a",{"$f":"IF(R5=\"Accelerated Replacement (AR)\",\"Estimated annual energy savings for the measure (kWh/yr)\",\"Estimated annual energy savings for the measure (kWh/yr)\")","v":"Estimated annual energy savings for the measure (kWh/yr)"},null,"a",{"$f":"IF(U5=\"Accelerated Replacement (AR)\",\"Estimated annual energy savings for the measure (kWh/yr)\",\"Estimated annual energy savings for the measure (kWh/yr)\")","v":"Estimated annual energy savings for the measure (kWh/yr)"},null,"a",{"$f":"IF(X5=\"Accelerated Replacement (AR)\",\"Estimated annual energy savings for the measure (kWh/yr)\",\"Estimated annual energy savings for the measure (kWh/yr)\")","v":"Estimated annual energy savings for the measure (kWh/yr)"},null,"a",{"$f":"IF(AA5=\"Accelerated Replacement (AR)\",\"Estimated annual energy savings for the measure (kWh/yr)\",\"Estimated annual energy savings for the measure (kWh/yr)\")","v":"Estimated annual energy savings for the measure (kWh/yr)"},null,"a",{"$f":"IF(AD5=\"Accelerated Replacement (AR)\",\"Estimated annual energy savings for the measure (kWh/yr)\",\"Estimated annual energy savings for the measure (kWh/yr)\")","v":"Estimated annual energy savings for the measure (kWh/yr)"},null,"a",{"$f":"IF(AG5=\"Accelerated Replacement (AR)\",\"Estimated annual energy savings for the measure (kWh/yr)\",\"Estimated annual energy savings for the measure (kWh/yr)\")","v":"Estimated annual energy savings for the measure (kWh/yr)"},null,"a",{"$f":"IF(AJ5=\"Accelerated Replacement (AR)\",\"Estimated annual energy savings for the measure (kWh/yr)\",\"Estimated annual energy savings for the measure (kWh/yr)\")","v":"Estimated annual energy savings for the measure (kWh/yr)"},null,"a",{"$f":"IF(AM5=\"Accelerated Replacement (AR)\",\"Estimated annual energy savings for the measure (kWh/yr)\",\"Estimated annual energy savings for the measure (kWh/yr)\")","v":"Estimated annual energy savings for the measure (kWh/yr)"},null,"a",{"$f":"IF(AP5=\"Accelerated Replacement (AR)\",\"Estimated annual energy savings for the measure (kWh/yr)\",\"Estimated annual energy savings for the measure (kWh/yr)\")","v":"Estimated annual energy savings for the measure (kWh/yr)"},null,"a",{"$f":"IF(AS5=\"Accelerated Replacement (AR)\",\"Estimated annual energy savings for the measure (kWh/yr)\",\"Estimated annual energy savings for the measure (kWh/yr)\")","v":"Estimated annual energy savings for the measure (kWh/yr)"}]
["b","Estimated DEER peak demand savings for the measure (kW)",null,"b","Estimated DEER peak demand savings for the measure (kW)",null,"b","Estimated DEER peak demand savings for the measure (kW)",null,"b","Estimated DEER peak demand savings for the measure (kW)",null,"b","Estimated DEER peak demand savings for the measure (kW)",null,"b","Estimated DEER peak demand savings for the measure (kW)",null,"b","Estimated DEER peak demand savings for the measure (kW)",null,"b","Estimated DEER peak demand savings for the measure (kW)",null,"b","Estimated DEER peak demand savings for the measure (kW)",null,"b","Estimated DEER peak demand savings for the measure (kW)",null,"b","Estimated DEER peak demand savings for the measure (kW)",null,"b","Estimated DEER peak demand savings for the measure (kW)",null,"b","Estimated DEER peak demand savings for the measure (kW)",null,"b","Estimated DEER peak demand savings for the measure (kW)",null,"b","Estimated DEER peak demand savings for the measure (kW)"]
["c",{"$f":"IF(C5=\"Accelerated Replacement (AR)\",\"Estimated Accelerated Replacement Cost\",IF(C5=\"Behaviorial, RCx, Operational (BRO)\",\"Estimated Full Measure Cost\",IF(C5=\"Normal Replacement (NR) \",\"Estimated Incremental Measure Cost\",IF(C5=\"Add-On Equipment (AOE)\",\"Estimated Full Measure Cost\",IF(C5=\"New Construction (NC)\",\"Estimated Incremental Measure Cost\",IF(C5=\"Building Weatherization (BW)\",\"Estimated Full Measure Cost\",\"\"))))))","v":""},null,"c",{"$f":"IF(F5=\"Accelerated Replacement (AR)\",\"Estimated Accelerated Replacement Cost\",IF(F5=\"Behaviorial, RCx, Operational (BRO)\",\"Estimated Full Measure Cost\",IF(F5=\"Normal Replacement (NR) \",\"Estimated Incremental Measure Cost\",IF(F5=\"Add-On Equipment (AOE)\",\"Estimated Full Measure Cost\",IF(F5=\"New Construction (NC)\",\"Estimated Incremental Measure Cost\",IF(F5=\"Building Weatherization (BW)\",\"Estimated Full Measure Cost\",\"\"))))))","v":""},null,"c",{"$f":"IF(I5=\"Accelerated Replacement (AR)\",\"Estimated Accelerated Replacement Cost\",IF(I5=\"Behaviorial, RCx, Operational (BRO)\",\"Estimated Full Measure Cost\",IF(I5=\"Normal Replacement (NR) \",\"Estimated Incremental Measure Cost\",IF(I5=\"Add-On Equipment (AOE)\",\"Estimated Full Measure Cost\",IF(I5=\"New Construction (NC)\",\"Estimated Incremental Measure Cost\",IF(I5=\"Building Weatherization (BW)\",\"Estimated Full Measure Cost\",\"\"))))))","v":""},null,"c",{"$f":"IF(L5=\"Accelerated Replacement (AR)\",\"Estimated Accelerated Replacement Cost\",IF(L5=\"Behaviorial, RCx, Operational (BRO)\",\"Estimated Full Measure Cost\",IF(L5=\"Normal Replacement (NR) \",\"Estimated Incremental Measure Cost\",IF(L5=\"Add-On Equipment (AOE)\",\"Estimated Full Measure Cost\",IF(L5=\"New Construction (NC)\",\"Estimated Incremental Measure Cost\",IF(L5=\"Building Weatherization (BW)\",\"Estimated Full Measure Cost\",\"\"))))))","v":""},null,"c",{"$f":"IF(O5=\"Accelerated Replacement (AR)\",\"Estimated Accelerated Replacement Cost\",IF(O5=\"Behaviorial, RCx, Operational (BRO)\",\"Estimated Full Measure Cost\",IF(O5=\"Normal Replacement (NR) \",\"Estimated Incremental Measure Cost\",IF(O5=\"Add-On Equipment (AOE)\",\"Estimated Full Measure Cost\",IF(O5=\"New Construction (NC)\",\"Estimated Incremental Measure Cost\",IF(O5=\"Building Weatherization (BW)\",\"Estimated Full Measure Cost\",\"\"))))))","v":""},null,"c",{"$f":"IF(R5=\"Accelerated Replacement (AR)\",\"Estimated Accelerated Replacement Cost\",IF(R5=\"Behaviorial, RCx, Operational (BRO)\",\"Estimated Full Measure Cost\",IF(R5=\"Normal Replacement (NR) \",\"Estimated Incremental Measure Cost\",IF(R5=\"Add-On Equipment (AOE)\",\"Estimated Full Measure Cost\",IF(R5=\"New Construction (NC)\",\"Estimated Incremental Measure Cost\",IF(R5=\"Building Weatherization (BW)\",\"Estimated Full Measure Cost\",\"\"))))))","v":""},null,"c",{"$f":"IF(U5=\"Accelerated Replacement (AR)\",\"Estimated Accelerated Replacement Cost\",IF(U5=\"Behaviorial, RCx, Operational (BRO)\",\"Estimated Full Measure Cost\",IF(U5=\"Normal Replacement (NR) \",\"Estimated Incremental Measure Cost\",IF(U5=\"Add-On Equipment (AOE)\",\"Estimated Full Measure Cost\",IF(U5=\"New Construction (NC)\",\"Estimated Incremental Measure Cost\",IF(U5=\"Building Weatherization (BW)\",\"Estimated Full Measure Cost\",\"\"))))))","v":""},null,"c",{"$f":"IF(X5=\"Accelerated Replacement (AR)\",\"Estimated Accelerated Replacement Cost\",IF(X5=\"Behaviorial, RCx, Operational (BRO)\",\"Estimated Full Measure Cost\",IF(X5=\"Normal Replacement (NR) \",\"Estimated Incremental Measure Cost\",IF(X5=\"Add-On Equipment (AOE)\",\"Estimated Full Measure Cost\",IF(X5=\"New Construction (NC)\",\"Estimated Incremental Measure Cost\",IF(X5=\"Building Weatherization (BW)\",\"Estimated Full Measure Cost\",\"\"))))))","v":""},null,"c",{"$f":"IF(AA5=\"Accelerated Replacement (AR)\",\"Estimated Accelerated Replacement Cost\",IF(AA5=\"Behaviorial, RCx, Operational (BRO)\",\"Estimated Full Measure Cost\",IF(AA5=\"Normal Replacement (NR) \",\"Estimated Incremental Measure Cost\",IF(AA5=\"Add-On Equipment (AOE)\",\"Estimated Full Measure Cost\",IF(AA5=\"New Construction (NC)\",\"Estimated Incremental Measure Cost\",IF(AA5=\"Building Weatherization (BW)\",\"Estimated Full Measure Cost\",\"\"))))))","v":""},null,"c",{"$f":"IF(AD5=\"Accelerated Replacement (AR)\",\"Estimated Accelerated Replacement Cost\",IF(AD5=\"Behaviorial, RCx, Operational (BRO)\",\"Estimated Full Measure Cost\",IF(AD5=\"Normal Replacement (NR) \",\"Estimated Incremental Measure Cost\",IF(AD5=\"Add-On Equipment (AOE)\",\"Estimated Full Measure Cost\",IF(AD5=\"New Construction (NC)\",\"Estimated Incremental Measure Cost\",IF(AD5=\"Building Weatherization (BW)\",\"Estimated Full Measure Cost\",\"\"))))))","v":""},null,"c",{"$f":"IF(AG5=\"Accelerated Replacement (AR)\",\"Estimated Accelerated Replacement Cost\",IF(AG5=\"Behaviorial, RCx, Operational (BRO)\",\"Estimated Full Measure Cost\",IF(AG5=\"Normal Replacement (NR) \",\"Estimated Incremental Measure Cost\",IF(AG5=\"Add-On Equipment (AOE)\",\"Estimated Full Measure Cost\",IF(AG5=\"New Construction (NC)\",\"Estimated Incremental Measure Cost\",IF(AG5=\"Building Weatherization (BW)\",\"Estimated Full Measure Cost\",\"\"))))))","v":""},null,"c",{"$f":"IF(AJ5=\"Accelerated Replacement (AR)\",\"Estimated Accelerated Replacement Cost\",IF(AJ5=\"Behaviorial, RCx, Operational (BRO)\",\"Estimated Full Measure Cost\",IF(AJ5=\"Normal Replacement (NR) \",\"Estimated Incremental Measure Cost\",IF(AJ5=\"Add-On Equipment (AOE)\",\"Estimated Full Measure Cost\",IF(AJ5=\"New Construction (NC)\",\"Estimated Incremental Measure Cost\",IF(AJ5=\"Building Weatherization (BW)\",\"Estimated Full Measure Cost\",\"\"))))))","v":""},null,"c",{"$f":"IF(AM5=\"Accelerated Replacement (AR)\",\"Estimated Accelerated Replacement Cost\",IF(AM5=\"Behaviorial, RCx, Operational (BRO)\",\"Estimated Full Measure Cost\",IF(AM5=\"Normal Replacement (NR) \",\"Estimated Incremental Measure Cost\",IF(AM5=\"Add-On Equipment (AOE)\",\"Estimated Full Measure Cost\",IF(AM5=\"New Construction (NC)\",\"Estimated Incremental Measure Cost\",IF(AM5=\"Building Weatherization (BW)\",\"Estimated Full Measure Cost\",\"\"))))))","v":""},null,"c",{"$f":"IF(AP5=\"Accelerated Replacement (AR)\",\"Estimated Accelerated Replacement Cost\",IF(AP5=\"Behaviorial, RCx, Operational (BRO)\",\"Estimated Full Measure Cost\",IF(AP5=\"Normal Replacement (NR) \",\"Estimated Incremental Measure Cost\",IF(AP5=\"Add-On Equipment (AOE)\",\"Estimated Full Measure Cost\",IF(AP5=\"New Construction (NC)\",\"Estimated Incremental Measure Cost\",IF(AP5=\"Building Weatherization (BW)\",\"Estimated Full Measure Cost\",\"\"))))))","v":""},null,"c",{"$f":"IF(AS5=\"Accelerated Replacement (AR)\",\"Estimated Accelerated Replacement Cost\",IF(AS5=\"Behaviorial, RCx, Operational (BRO)\",\"Estimated Full Measure Cost\",IF(AS5=\"Normal Replacement (NR) \",\"Estimated Incremental Measure Cost\",IF(AS5=\"Add-On Equipment (AOE)\",\"Estimated Full Measure Cost\",IF(AS5=\"New Construction (NC)\",\"Estimated Incremental Measure Cost\",IF(AS5=\"Building Weatherization (BW)\",\"Estimated Full Measure Cost\",\"\"))))))","v":""}]
["d",{"$f":"IF(C5=\"Add-On Equipment (AOE)\",\"\",IF(C5=\"Behaviorial, RCx, Operational (BRO)\",\"\",IF(C5=\"\",\"\",\"Expected Useful Life (EUL) of the new equipment (yrs)\")))","v":""},null,"d",{"$f":"IF(F5=\"Add-On Equipment (AOE)\",\"\",IF(F5=\"Behaviorial, RCx, Operational (BRO)\",\"\",IF(F5=\"\",\"\",\"Expected Useful Life (EUL) of the new equipment (yrs)\")))","v":""},null,"d",{"$f":"IF(I5=\"Add-On Equipment (AOE)\",\"\",IF(I5=\"Behaviorial, RCx, Operational (BRO)\",\"\",IF(I5=\"\",\"\",\"Expected Useful Life (EUL) of the new equipment (yrs)\")))","v":""},null,"d",{"$f":"IF(L5=\"Add-On Equipment (AOE)\",\"\",IF(L5=\"Behaviorial, RCx, Operational (BRO)\",\"\",IF(L5=\"\",\"\",\"Expected Useful Life (EUL) of the new equipment (yrs)\")))","v":""},null,"d",{"$f":"IF(O5=\"Add-On Equipment (AOE)\",\"\",IF(O5=\"Behaviorial, RCx, Operational (BRO)\",\"\",IF(O5=\"\",\"\",\"Expected Useful Life (EUL) of the new equipment (yrs)\")))","v":""},null,"d",{"$f":"IF(R5=\"Add-On Equipment (AOE)\",\"\",IF(R5=\"Behaviorial, RCx, Operational (BRO)\",\"\",IF(R5=\"\",\"\",\"Expected Useful Life (EUL) of the new equipment (yrs)\")))","v":""},null,"d",{"$f":"IF(U5=\"Add-On Equipment (AOE)\",\"\",IF(U5=\"Behaviorial, RCx, Operational (BRO)\",\"\",IF(U5=\"\",\"\",\"Expected Useful Life (EUL) of the new equipment (yrs)\")))","v":""},null,"d",{"$f":"IF(X5=\"Add-On Equipment (AOE)\",\"\",IF(X5=\"Behaviorial, RCx, Operational (BRO)\",\"\",IF(X5=\"\",\"\",\"Expected Useful Life (EUL) of the new equipment (yrs)\")))","v":""},null,"d",{"$f":"IF(AA5=\"Add-On Equipment (AOE)\",\"\",IF(AA5=\"Behaviorial, RCx, Operational (BRO)\",\"\",IF(AA5=\"\",\"\",\"Expected Useful Life (EUL) of the new equipment (yrs)\")))","v":""},null,"d",{"$f":"IF(AD5=\"Add-On Equipment (AOE)\",\"\",IF(AD5=\"Behaviorial, RCx, Operational (BRO)\",\"\",IF(AD5=\"\",\"\",\"Expected Useful Life (EUL) of the new equipment (yrs)\")))","v":""},null,"d",{"$f":"IF(AG5=\"Add-On Equipment (AOE)\",\"\",IF(AG5=\"Behaviorial, RCx, Operational (BRO)\",\"\",IF(AG5=\"\",\"\",\"Expected Useful Life (EUL) of the new equipment (yrs)\")))","v":""},null,"d",{"$f":"IF(AJ5=\"Add-On Equipment (AOE)\",\"\",IF(AJ5=\"Behaviorial, RCx, Operational (BRO)\",\"\",IF(AJ5=\"\",\"\",\"Expected Useful Life (EUL) of the new equipment (yrs)\")))","v":""},null,"d",{"$f":"IF(AM5=\"Add-On Equipment (AOE)\",\"\",IF(AM5=\"Behaviorial, RCx, Operational (BRO)\",\"\",IF(AM5=\"\",\"\",\"Expected Useful Life (EUL) of the new equipment (yrs)\")))","v":""},null,"d",{"$f":"IF(AP5=\"Add-On Equipment (AOE)\",\"\",IF(AP5=\"Behaviorial, RCx, Operational (BRO)\",\"\",IF(AP5=\"\",\"\",\"Expected Useful Life (EUL) of the new equipment (yrs)\")))","v":""},null,"d",{"$f":"IF(AS5=\"Add-On Equipment (AOE)\",\"\",IF(AS5=\"Behaviorial, RCx, Operational (BRO)\",\"\",IF(AS5=\"\",\"\",\"Expected Useful Life (EUL) of the new equipment (yrs)\")))","v":""}]
["e",{"$f":"IF(C5=\"Accelerated Replacement (AR)\",\"Estimated Remaining Useful Life (RUL) of the existing equipment (yrs)\",IF(C5=\"Add-On Equipment (AOE)\",\"Estimated Remaining Useful Life (RUL) of the Host Equipment and any equipment being augmented (yrs)\",\"\"))","v":""},null,"e",{"$f":"IF(F5=\"Accelerated Replacement (AR)\",\"Estimated Remaining Useful Life (RUL) of the existing equipment (yrs)\",IF(F5=\"Add-On Equipment (AOE)\",\"Estimated Remaining Useful Life (RUL) of the Host Equipment and any equipment being augmented (yrs)\",\"\"))","v":""},null,"e",{"$f":"IF(I5=\"Accelerated Replacement (AR)\",\"Estimated Remaining Useful Life (RUL) of the existing equipment (yrs)\",IF(I5=\"Add-On Equipment (AOE)\",\"Estimated Remaining Useful Life (RUL) of the Host Equipment and any equipment being augmented (yrs)\",\"\"))","v":""},null,"e",{"$f":"IF(L5=\"Accelerated Replacement (AR)\",\"Estimated Remaining Useful Life (RUL) of the existing equipment (yrs)\",IF(L5=\"Add-On Equipment (AOE)\",\"Estimated Remaining Useful Life (RUL) of the Host Equipment and any equipment being augmented (yrs)\",\"\"))","v":""},null,"e",{"$f":"IF(O5=\"Accelerated Replacement (AR)\",\"Estimated Remaining Useful Life (RUL) of the existing equipment (yrs)\",IF(O5=\"Add-On Equipment (AOE)\",\"Estimated Remaining Useful Life (RUL) of the Host Equipment and any equipment being augmented (yrs)\",\"\"))","v":""},null,"e",{"$f":"IF(R5=\"Accelerated Replacement (AR)\",\"Estimated Remaining Useful Life (RUL) of the existing equipment (yrs)\",IF(R5=\"Add-On Equipment (AOE)\",\"Estimated Remaining Useful Life (RUL) of the Host Equipment and any equipment being augmented (yrs)\",\"\"))","v":""},null,"e",{"$f":"IF(U5=\"Accelerated Replacement (AR)\",\"Estimated Remaining Useful Life (RUL) of the existing equipment (yrs)\",IF(U5=\"Add-On Equipment (AOE)\",\"Estimated Remaining Useful Life (RUL) of the Host Equipment and any equipment being augmented (yrs)\",\"\"))","v":""},null,"e",{"$f":"IF(X5=\"Accelerated Replacement (AR)\",\"Estimated Remaining Useful Life (RUL) of the existing equipment (yrs)\",IF(X5=\"Add-On Equipment (AOE)\",\"Estimated Remaining Useful Life (RUL) of the Host Equipment and any equipment being augmented (yrs)\",\"\"))","v":""},null,"e",{"$f":"IF(AA5=\"Accelerated Replacement (AR)\",\"Estimated Remaining Useful Life (RUL) of the existing equipment (yrs)\",IF(AA5=\"Add-On Equipment (AOE)\",\"Estimated Remaining Useful Life (RUL) of the Host Equipment and any equipment being augmented (yrs)\",\"\"))","v":""},null,"e",{"$f":"IF(AD5=\"Accelerated Replacement (AR)\",\"Estimated Remaining Useful Life (RUL) of the existing equipment (yrs)\",IF(AD5=\"Add-On Equipment (AOE)\",\"Estimated Remaining Useful Life (RUL) of the Host Equipment and any equipment being augmented (yrs)\",\"\"))","v":""},null,"e",{"$f":"IF(AG5=\"Accelerated Replacement (AR)\",\"Estimated Remaining Useful Life (RUL) of the existing equipment (yrs)\",IF(AG5=\"Add-On Equipment (AOE)\",\"Estimated Remaining Useful Life (RUL) of the Host Equipment and any equipment being augmented (yrs)\",\"\"))","v":""},null,"e",{"$f":"IF(AJ5=\"Accelerated Replacement (AR)\",\"Estimated Remaining Useful Life (RUL) of the existing equipment (yrs)\",IF(AJ5=\"Add-On Equipment (AOE)\",\"Estimated Remaining Useful Life (RUL) of the Host Equipment and any equipment being augmented (yrs)\",\"\"))","v":""},null,"e",{"$f":"IF(AM5=\"Accelerated Replacement (AR)\",\"Estimated Remaining Useful Life (RUL) of the existing equipment (yrs)\",IF(AM5=\"Add-On Equipment (AOE)\",\"Estimated Remaining Useful Life (RUL) of the Host Equipment and any equipment being augmented (yrs)\",\"\"))","v":""},null,"e",{"$f":"IF(AP5=\"Accelerated Replacement (AR)\",\"Estimated Remaining Useful Life (RUL) of the existing equipment (yrs)\",IF(AP5=\"Add-On Equipment (AOE)\",\"Estimated Remaining Useful Life (RUL) of the Host Equipment and any equipment being augmented (yrs)\",\"\"))","v":""},null,"e",{"$f":"IF(AS5=\"Accelerated Replacement (AR)\",\"Estimated Remaining Useful Life (RUL) of the existing equipment (yrs)\",IF(AS5=\"Add-On Equipment (AOE)\",\"Estimated Remaining Useful Life (RUL) of the Host Equipment and any equipment being augmented (yrs)\",\"\"))","v":""}]
["f","Annual operating hours for this measure (hrs/yr). \nIdentify if this is the base case or proposed case.",null,"f","Annual operating hours for this measure (hrs/yr). \nIdentify if this is the base case or proposed case.",null,"f","Annual operating hours for this measure (hrs/yr). \nIdentify if this is the base case or proposed case.",null,"f","Annual operating hours for this measure (hrs/yr). \nIdentify if this is the base case or proposed case.",null,"f","Annual operating hours for this measure (hrs/yr). \nIdentify if this is the base case or proposed case.",null,"f","Annual operating hours for this measure (hrs/yr). \nIdentify if this is the base case or proposed case.",null,"f","Annual operating hours for this measure (hrs/yr). \nIdentify if this is the base case or proposed case.",null,"f","Annual operating hours for this measure (hrs/yr). \nIdentify if this is the base case or proposed case.",null,"f","Annual operating hours for this measure (hrs/yr). \nIdentify if this is the base case or proposed case.",null,"f","Annual operating hours for this measure (hrs/yr). \nIdentify if this is the base case or proposed case.",null,"f","Annual operating hours for this measure (hrs/yr). \nIdentify if this is the base case or proposed case.",null,"f","Annual operating hours for this measure (hrs/yr). \nIdentify if this is the base case or proposed case.",null,"f","Annual operating hours for this measure (hrs/yr). \nIdentify if this is the base case or proposed case.",null,"f","Annual operating hours for this measure (hrs/yr). \nIdentify if this is the base case or proposed case.",null,"f","Annual operating hours for this measure (hrs/yr). \nIdentify if this is the base case or proposed case."]
[]
[2,"Please describe the existing/baseline equipment, its operation, control method and efficiency.",null,2,"Please describe the existing/baseline equipment, its operation, control method and efficiency.",null,2,"Please describe the existing/baseline equipment, its operation, control method and efficiency.",null,2,"Please describe the existing/baseline equipment, its operation, control method and efficiency.",null,2,"Please describe the existing/baseline equipment, its operation, control method and efficiency.",null,2,"Please describe the existing/baseline equipment, its operation, control method and efficiency.",null,2,"Please describe the existing/baseline equipment, its operation, control method and efficiency.",null,2,"Please describe the existing/baseline equipment, its operation, control method and efficiency.",null,2,"Please describe the existing/baseline equipment, its operation, control method and efficiency.",null,2,"Please describe the existing/baseline equipment, its operation, control method and efficiency.",null,2,"Please describe the existing/baseline equipment, its operation, control method and efficiency.",null,2,"Please describe the existing/baseline equipment, its operation, control method and efficiency.",null,2,"Please describe the existing/baseline equipment, its operation, control method and efficiency.",null,2,"Please describe the existing/baseline equipment, its operation, control method and efficiency.",null,2,"Please describe the existing/baseline equipment, its operation, control method and efficiency."]
[]
[]
[3,"Please describe the proposed energy efficiency project/equipment opportunity for which you are seeking utility incentives; describe the planned operation, control method and efficiency.",null,3,"Please describe the proposed energy efficiency project/equipment opportunity for which you are seeking utility incentives; describe the planned operation, control method and efficiency.",null,3,"Please describe the proposed energy efficiency project/equipment opportunity for which you are seeking utility incentives; describe the planned operation, control method and efficiency.",null,3,"Please describe the proposed energy efficiency project/equipment opportunity for which you are seeking utility incentives; describe the planned operation, control method and efficiency.",null,3,"Please describe the proposed energy efficiency project/equipment opportunity for which you are seeking utility incentives; describe the planned operation, control method and efficiency.",null,3,"Please describe the proposed energy efficiency project/equipment opportunity for which you are seeking utility incentives; describe the planned operation, control method and efficiency.",null,3,"Please describe the proposed energy efficiency project/equipment opportunity for which you are seeking utility incentives; describe the planned operation, control method and efficiency.",null,3,"Please describe the proposed energy efficiency project/equipment opportunity for which you are seeking utility incentives; describe the planned operation, control method and efficiency.",null,3,"Please describe the proposed energy efficiency project/equipment opportunity for which you are seeking utility incentives; describe the planned operation, control method and efficiency.",null,3,"Please describe the proposed energy efficiency project/equipment opportunity for which you are seeking utility incentives; describe the planned operation, control method and efficiency.",null,3,"Please describe the proposed energy efficiency project/equipment opportunity for which you are seeking utility incentives; describe the planned operation, control method and efficiency.",null,3,"Please describe the proposed energy efficiency project/equipment opportunity for which you are seeking utility incentives; describe the planned operation, control method and efficiency.",null,3,"Please describe the proposed energy efficiency project/equipment opportunity for which you are seeking utility incentives; describe the planned operation, control method and efficiency.",null,3,"Please describe the proposed energy efficiency project/equipment opportunity for which you are seeking utility incentives; describe the planned operation, control method and efficiency.",null,3,"Please describe the proposed energy efficiency project/equipment opportunity for which you are seeking utility incentives; describe the planned operation, control method and efficiency."]
[]
[]
[4,"Please describe the scope of work (labor, materials) involved in implementing the measure; i.e. new equipment, existing equipment replacement, equipment overhaul, new programming/algorithm, etc.",null,4,"Please describe the scope of work (labor, materials) involved in implementing the measure; i.e. new equipment, existing equipment replacement, equipment overhaul, new programming/algorithm, etc.",null,4,"Please describe the scope of work (labor, materials) involved in implementing the measure; i.e. new equipment, existing equipment replacement, equipment overhaul, new programming/algorithm, etc.",null,4,"Please describe the scope of work (labor, materials) involved in implementing the measure; i.e. new equipment, existing equipment replacement, equipment overhaul, new programming/algorithm, etc.",null,4,"Please describe the scope of work (labor, materials) involved in implementing the measure; i.e. new equipment, existing equipment replacement, equipment overhaul, new programming/algorithm, etc.",null,4,"Please describe the scope of work (labor, materials) involved in implementing the measure; i.e. new equipment, existing equipment replacement, equipment overhaul, new programming/algorithm, etc.",null,4,"Please describe the scope of work (labor, materials) involved in implementing the measure; i.e. new equipment, existing equipment replacement, equipment overhaul, new programming/algorithm, etc.",null,4,"Please describe the scope of work (labor, materials) involved in implementing the measure; i.e. new equipment, existing equipment replacement, equipment overhaul, new programming/algorithm, etc.",null,4,"Please describe the scope of work (labor, materials) involved in implementing the measure; i.e. new equipment, existing equipment replacement, equipment overhaul, new programming/algorithm, etc.",null,4,"Please describe the scope of work (labor, materials) involved in implementing the measure; i.e. new equipment, existing equipment replacement, equipment overhaul, new programming/algorithm, etc.",null,4,"Please describe the scope of work (labor, materials) involved in implementing the measure; i.e. new equipment, existing equipment replacement, equipment overhaul, new programming/algorithm, etc.",null,4,"Please describe the scope of work (labor, materials) involved in implementing the measure; i.e. new equipment, existing equipment replacement, equipment overhaul, new programming/algorithm, etc.",null,4,"Please describe the scope of work (labor, materials) involved in implementing the measure; i.e. new equipment, existing equipment replacement, equipment overhaul, new programming/algorithm, etc.",null,4,"Please describe the scope of work (labor, materials) involved in implementing the measure; i.e. new equipment, existing equipment replacement, equipment overhaul, new programming/algorithm, etc.",null,4,"Please describe the scope of work (labor, materials) involved in implementing the measure; i.e. new equipment, existing equipment replacement, equipment overhaul, new programming/algorithm, etc."]
[]
[]
[5,"Does the proposed measure involve manual control of equipment or non-automated operational changes (pertaining to the proposed measure or system incorporating the measure)? If Yes, describe the control operation.",null,5,"Does the proposed measure involve manual control of equipment or non-automated operational changes (pertaining to the proposed measure or system incorporating the measure)? If Yes, describe the control operation.",null,5,"Does the proposed measure involve manual control of equipment or non-automated operational changes (pertaining to the proposed measure or system incorporating the measure)? If Yes, describe the control operation.",null,5,"Does the proposed measure involve manual control of equipment or non-automated operational changes (pertaining to the proposed measure or system incorporating the measure)? If Yes, describe the control operation.",null,5,"Does the proposed measure involve manual control of equipment or non-automated operational changes (pertaining to the proposed measure or system incorporating the measure)? If Yes, describe the control operation.",null,5,"Does the proposed measure involve manual control of equipment or non-automated operational changes (pertaining to the proposed measure or system incorporating the measure)? If Yes, describe the control operation.",null,5,"Does the proposed measure involve manual control of equipment or non-automated operational changes (pertaining to the proposed measure or system incorporating the measure)? If Yes, describe the control operation.",null,5,"Does the proposed measure involve manual control of equipment or non-automated operational changes (pertaining to the proposed measure or system incorporating the measure)? If Yes, describe the control operation.",null,5,"Does the proposed measure involve manual control of equipment or non-automated operational changes (pertaining to the proposed measure or system incorporating the measure)? If Yes, describe the control operation.",null,5,"Does the proposed measure involve manual control of equipment or non-automated operational changes (pertaining to the proposed measure or system incorporating the measure)? If Yes, describe the control operation.",null,5,"Does the proposed measure involve manual control of equipment or non-automated operational changes (pertaining to the proposed measure or system incorporating the measure)? If Yes, describe the control operation.",null,5,"Does the proposed measure involve manual control of equipment or non-automated operational changes (pertaining to the proposed measure or system incorporating the measure)? If Yes, describe the control operation.",null,5,"Does the proposed measure involve manual control of equipment or non-automated operational changes (pertaining to the proposed measure or system incorporating the measure)? If Yes, describe the control operation.",null,5,"Does the proposed measure involve manual control of equipment or non-automated operational changes (pertaining to the proposed measure or system incorporating the measure)? If Yes, describe the control operation.",null,5,"Does the proposed measure involve manual control of equipment or non-automated operational changes (pertaining to the proposed measure or system incorporating the measure)? If Yes, describe the control operation."]
[]
[]
[6,"Is the measure offered through the SCE Express Program or Midstream Point of Purchase (MPOP) Program?","--Select--",6,"Is the measure offered through the SCE Express Program or Midstream Point of Purchase (MPOP) Program?","--Select--",6,"Is the measure offered through the SCE Express Program or Midstream Point of Purchase (MPOP) Program?","--Select--",6,"Is the measure offered through the SCE Express Program or Midstream Point of Purchase (MPOP) Program?","--Select--",6,"Is the measure offered through the SCE Express Program or Midstream Point of Purchase (MPOP) Program?","--Select--",6,"Is the measure offered through the SCE Express Program or Midstream Point of Purchase (MPOP) Program?","--Select--",6,"Is the measure offered through the SCE Express Program or Midstream Point of Purchase (MPOP) Program?","--Select--",6,"Is the measure offered through the SCE Express Program or Midstream Point of Purchase (MPOP) Program?","--Select--",6,"Is the measure offered through the SCE Express Program or Midstream Point of Purchase (MPOP) Program?","--Select--",6,"Is the measure offered through the SCE Express Program or Midstream Point of Purchase (MPOP) Program?","--Select--",6,"Is the measure offered through the SCE Express Program or Midstream Point of Purchase (MPOP) Program?","--Select--",6,"Is the measure offered through the SCE Express Program or Midstream Point of Purchase (MPOP) Program?","--Select--",6,"Is the measure offered through the SCE Express Program or Midstream Point of Purchase (MPOP) Program?","--Select--",6,"Is the measure offered through the SCE Express Program or Midstream Point of Purchase (MPOP) Program?","--Select--",6,"Is the measure offered through the SCE Express Program or Midstream Point of Purchase (MPOP) Program?","--Select--"]
[null,"If YES - provide measure/solution code or workpaper ID. ",null,null,"If YES - provide measure/solution code or workpaper ID. ",null,null,"If YES - provide measure/solution code or workpaper ID. ",null,null,"If YES - provide measure/solution code or workpaper ID. ",null,null,"If YES - provide measure/solution code or workpaper ID. ",null,null,"If YES - provide measure/solution code or workpaper ID. ",null,null,"If YES - provide measure/solution code or workpaper ID. ",null,null,"If YES - provide measure/solution code or workpaper ID. ",null,null,"If YES - provide measure/solution code or workpaper ID. ",null,null,"If YES - provide measure/solution code or workpaper ID. ",null,null,"If YES - provide measure/solution code or workpaper ID. ",null,null,"If YES - provide measure/solution code or workpaper ID. ",null,null,"If YES - provide measure/solution code or workpaper ID. ",null,null,"If YES - provide measure/solution code or workpaper ID. ",null,null,"If YES - provide measure/solution code or workpaper ID. "]
[]
[7,"Is a utility-approved measure (i.e. solution code) available for the proposed project scope?","--Select--",7,"Is a utility-approved measure (i.e. solution code) available for the proposed project scope?","--Select--",7,"Is a utility-approved measure (i.e. solution code) available for the proposed project scope?","--Select--",7,"Is a utility-approved measure (i.e. solution code) available for the proposed project scope?","--Select--",7,"Is a utility-approved measure (i.e. solution code) available for the proposed project scope?","--Select--",7,"Is a utility-approved measure (i.e. solution code) available for the proposed project scope?","--Select--",7,"Is a utility-approved measure (i.e. solution code) available for the proposed project scope?","--Select--",7,"Is a utility-approved measure (i.e. solution code) available for the proposed project scope?","--Select--",7,"Is a utility-approved measure (i.e. solution code) available for the proposed project scope?","--Select--",7,"Is a utility-approved measure (i.e. solution code) available for the proposed project scope?","--Select--",7,"Is a utility-approved measure (i.e. solution code) available for the proposed project scope?","--Select--",7,"Is a utility-approved measure (i.e. solution code) available for the proposed project scope?","--Select--",7,"Is a utility-approved measure (i.e. solution code) available for the proposed project scope?","--Select--",7,"Is a utility-approved measure (i.e. solution code) available for the proposed project scope?","--Select--",7,"Is a utility-approved measure (i.e. solution code) available for the proposed project scope?","--Select--"]
[null,"If YES - list the solution code. \nNote: Only one solution code can be used per measure.",null,null,"If YES - list the solution code. \nNote: Only one solution code can be used per measure.",null,null,"If YES - list the solution code. \nNote: Only one solution code can be used per measure.",null,null,"If YES - list the solution code. \nNote: Only one solution code can be used per measure.",null,null,"If YES - list the solution code. \nNote: Only one solution code can be used per measure.",null,null,"If YES - list the solution code. \nNote: Only one solution code can be used per measure.",null,null,"If YES - list the solution code. \nNote: Only one solution code can be used per measure.",null,null,"If YES - list the solution code. \nNote: Only one solution code can be used per measure.",null,null,"If YES - list the solution code. \nNote: Only one solution code can be used per measure.",null,null,"If YES - list the solution code. \nNote: Only one solution code can be used per measure.",null,null,"If YES - list the solution code. \nNote: Only one solution code can be used per measure.",null,null,"If YES - list the solution code. \nNote: Only one solution code can be used per measure.",null,null,"If YES - list the solution code. \nNote: Only one solution code can be used per measure.",null,null,"If YES - list the solution code. \nNote: Only one solution code can be used per measure.",null,null,"If YES - list the solution code. \nNote: Only one solution code can be used per measure."]
[]
[8,"Has the energy efficiency equipment been ordered, installed or existing equipment removed?","--Select--",8,"Has the energy efficiency equipment been ordered, installed or existing equipment removed?","--Select--",8,"Has the energy efficiency equipment been ordered, installed or existing equipment removed?","--Select--",8,"Has the energy efficiency equipment been ordered, installed or existing equipment removed?","--Select--",8,"Has the energy efficiency equipment been ordered, installed or existing equipment removed?","--Select--",8,"Has the energy efficiency equipment been ordered, installed or existing equipment removed?","--Select--",8,"Has the energy efficiency equipment been ordered, installed or existing equipment removed?","--Select--",8,"Has the energy efficiency equipment been ordered, installed or existing equipment removed?","--Select--",8,"Has the energy efficiency equipment been ordered, installed or existing equipment removed?","--Select--",8,"Has the energy efficiency equipment been ordered, installed or existing equipment removed?","--Select--",8,"Has the energy efficiency equipment been ordered, installed or existing equipment removed?","--Select--",8,"Has the energy efficiency equipment been ordered, installed or existing equipment removed?","--Select--",8,"Has the energy efficiency equipment been ordered, installed or existing equipment removed?","--Select--",8,"Has the energy efficiency equipment been ordered, installed or existing equipment removed?","--Select--",8,"Has the energy efficiency equipment been ordered, installed or existing equipment removed?","--Select--"]
[]
[9,"Are Showstoppers (refer to the Showstoppers Tab) present for this measure ? If Yes, identify the Showstopper(s) and provide any justifications for the measure to still be considered valid.",null,9,"Are Showstoppers (refer to the Showstoppers Tab) present for this measure ? If Yes, identify the Showstopper(s) and provide any justifications for the measure to still be considered valid.",null,9,"Are Showstoppers (refer to the Showstoppers Tab) present for this measure ? If Yes, identify the Showstopper(s) and provide any justifications for the measure to still be considered valid.",null,9,"Are Showstoppers (refer to the Showstoppers Tab) present for this measure ? If Yes, identify the Showstopper(s) and provide any justifications for the measure to still be considered valid.",null,9,"Are Showstoppers (refer to the Showstoppers Tab) present for this measure ? If Yes, identify the Showstopper(s) and provide any justifications for the measure to still be considered valid.",null,9,"Are Showstoppers (refer to the Showstoppers Tab) present for this measure ? If Yes, identify the Showstopper(s) and provide any justifications for the measure to still be considered valid.",null,9,"Are Showstoppers (refer to the Showstoppers Tab) present for this measure ? If Yes, identify the Showstopper(s) and provide any justifications for the measure to still be considered valid.",null,9,"Are Showstoppers (refer to the Showstoppers Tab) present for this measure ? If Yes, identify the Showstopper(s) and provide any justifications for the measure to still be considered valid.",null,9,"Are Showstoppers (refer to the Showstoppers Tab) present for this measure ? If Yes, identify the Showstopper(s) and provide any justifications for the measure to still be considered valid.",null,9,"Are Showstoppers (refer to the Showstoppers Tab) present for this measure ? If Yes, identify the Showstopper(s) and provide any justifications for the measure to still be considered valid.",null,9,"Are Showstoppers (refer to the Showstoppers Tab) present for this measure ? If Yes, identify the Showstopper(s) and provide any justifications for the measure to still be considered valid.",null,9,"Are Showstoppers (refer to the Showstoppers Tab) present for this measure ? If Yes, identify the Showstopper(s) and provide any justifications for the measure to still be considered valid.",null,9,"Are Showstoppers (refer to the Showstoppers Tab) present for this measure ? If Yes, identify the Showstopper(s) and provide any justifications for the measure to still be considered valid.",null,9,"Are Showstoppers (refer to the Showstoppers Tab) present for this measure ? If Yes, identify the Showstopper(s) and provide any justifications for the measure to still be considered valid.",null,9,"Are Showstoppers (refer to the Showstoppers Tab) present for this measure ? If Yes, identify the Showstopper(s) and provide any justifications for the measure to still be considered valid."]
[]
[]
[]
[null,"Project Development Status",null,null,"Project Development Status",null,null,"Project Development Status",null,null,"Project Development Status",null,null,"Project Development Status",null,null,"Project Development Status",null,null,"Project Development Status",null,null,"Project Development Status",null,null,"Project Development Status",null,null,"Project Development Status",null,null,"Project Development Status",null,null,"Project Development Status",null,null,"Project Development Status",null,null,"Project Development Status",null,null,"Project Development Status"]
[]
[10,"Describe HOW the energy savings opportunity was identified.",null,10,"Describe HOW the energy savings opportunity was identified.",null,10,"Describe HOW the energy savings opportunity was identified.",null,10,"Describe HOW the energy savings opportunity was identified.",null,10,"Describe HOW the energy savings opportunity was identified.",null,10,"Describe HOW the energy savings opportunity was identified.",null,10,"Describe HOW the energy savings opportunity was identified.",null,10,"Describe HOW the energy savings opportunity was identified.",null,10,"Describe HOW the energy savings opportunity was identified.",null,10,"Describe HOW the energy savings opportunity was identified.",null,10,"Describe HOW the energy savings opportunity was identified.",null,10,"Describe HOW the energy savings opportunity was identified.",null,10,"Describe HOW the energy savings opportunity was identified.",null,10,"Describe HOW the energy savings opportunity was identified.",null,10,"Describe HOW the energy savings opportunity was identified."]
[]
[]
[11,"Are there documented Customer-Developer communications to support Influence (emails, meeting minutes, audits, etc.) for how the energy savings opportunity was identified?  Include available evidence and supporting documents.",null,11,"Are there documented Customer-Developer communications to support Influence (emails, meeting minutes, audits, etc.) for how the energy savings opportunity was identified?  Include available evidence and supporting documents.",null,11,"Are there documented Customer-Developer communications to support Influence (emails, meeting minutes, audits, etc.) for how the energy savings opportunity was identified?  Include available evidence and supporting documents.",null,11,"Are there documented Customer-Developer communications to support Influence (emails, meeting minutes, audits, etc.) for how the energy savings opportunity was identified?  Include available evidence and supporting documents.",null,11,"Are there documented Customer-Developer communications to support Influence (emails, meeting minutes, audits, etc.) for how the energy savings opportunity was identified?  Include available evidence and supporting documents.",null,11,"Are there documented Customer-Developer communications to support Influence (emails, meeting minutes, audits, etc.) for how the energy savings opportunity was identified?  Include available evidence and supporting documents.",null,11,"Are there documented Customer-Developer communications to support Influence (emails, meeting minutes, audits, etc.) for how the energy savings opportunity was identified?  Include available evidence and supporting documents.",null,11,"Are there documented Customer-Developer communications to support Influence (emails, meeting minutes, audits, etc.) for how the energy savings opportunity was identified?  Include available evidence and supporting documents.",null,11,"Are there documented Customer-Developer communications to support Influence (emails, meeting minutes, audits, etc.) for how the energy savings opportunity was identified?  Include available evidence and supporting documents.",null,11,"Are there documented Customer-Developer communications to support Influence (emails, meeting minutes, audits, etc.) for how the energy savings opportunity was identified?  Include available evidence and supporting documents.",null,11,"Are there documented Customer-Developer communications to support Influence (emails, meeting minutes, audits, etc.) for how the energy savings opportunity was identified?  Include available evidence and supporting documents.",null,11,"Are there documented Customer-Developer communications to support Influence (emails, meeting minutes, audits, etc.) for how the energy savings opportunity was identified?  Include available evidence and supporting documents.",null,11,"Are there documented Customer-Developer communications to support Influence (emails, meeting minutes, audits, etc.) for how the energy savings opportunity was identified?  Include available evidence and supporting documents.",null,11,"Are there documented Customer-Developer communications to support Influence (emails, meeting minutes, audits, etc.) for how the energy savings opportunity was identified?  Include available evidence and supporting documents.",null,11,"Are there documented Customer-Developer communications to support Influence (emails, meeting minutes, audits, etc.) for how the energy savings opportunity was identified?  Include available evidence and supporting documents."]
[]
[]
[12,"WHEN was the energy savings opportunity identified and presented to the Customer?  Please include available evidence and supporting documents.",null,12,"WHEN was the energy savings opportunity identified and presented to the Customer?  Please include available evidence and supporting documents.",null,12,"WHEN was the energy savings opportunity identified and presented to the Customer?  Please include available evidence and supporting documents.",null,12,"WHEN was the energy savings opportunity identified and presented to the Customer?  Please include available evidence and supporting documents.",null,12,"WHEN was the energy savings opportunity identified and presented to the Customer?  Please include available evidence and supporting documents.",null,12,"WHEN was the energy savings opportunity identified and presented to the Customer?  Please include available evidence and supporting documents.",null,12,"WHEN was the energy savings opportunity identified and presented to the Customer?  Please include available evidence and supporting documents.",null,12,"WHEN was the energy savings opportunity identified and presented to the Customer?  Please include available evidence and supporting documents.",null,12,"WHEN was the energy savings opportunity identified and presented to the Customer?  Please include available evidence and supporting documents.",null,12,"WHEN was the energy savings opportunity identified and presented to the Customer?  Please include available evidence and supporting documents.",null,12,"WHEN was the energy savings opportunity identified and presented to the Customer?  Please include available evidence and supporting documents.",null,12,"WHEN was the energy savings opportunity identified and presented to the Customer?  Please include available evidence and supporting documents.",null,12,"WHEN was the energy savings opportunity identified and presented to the Customer?  Please include available evidence and supporting documents.",null,12,"WHEN was the energy savings opportunity identified and presented to the Customer?  Please include available evidence and supporting documents.",null,12,"WHEN was the energy savings opportunity identified and presented to the Customer?  Please include available evidence and supporting documents."]
[]
[]
[13,"Has the Customer started engagement or discussions with other entities (like  outside Consultants, vendors, manufacturers) on the proposed measures along with receipt of any associated audit reports or studies generated by the other entities or has the Customer made a decision or shown intent or consideration on implementing the proposed measures prior to any Developer engagement?",null,13,"Has the Customer started engagement or discussions with other entities (like  outside Consultants, vendors, manufacturers) on the proposed measures along with receipt of any associated audit reports or studies generated by the other entities or has the Customer made a decision or shown intent or consideration on implementing the proposed measures prior to any Developer engagement?",null,13,"Has the Customer started engagement or discussions with other entities (like  outside Consultants, vendors, manufacturers) on the proposed measures along with receipt of any associated audit reports or studies generated by the other entities or has the Customer made a decision or shown intent or consideration on implementing the proposed measures prior to any Developer engagement?",null,13,"Has the Customer started engagement or discussions with other entities (like  outside Consultants, vendors, manufacturers) on the proposed measures along with receipt of any associated audit reports or studies generated by the other entities or has the Customer made a decision or shown intent or consideration on implementing the proposed measures prior to any Developer engagement?",null,13,"Has the Customer started engagement or discussions with other entities (like  outside Consultants, vendors, manufacturers) on the proposed measures along with receipt of any associated audit reports or studies generated by the other entities or has the Customer made a decision or shown intent or consideration on implementing the proposed measures prior to any Developer engagement?",null,13,"Has the Customer started engagement or discussions with other entities (like  outside Consultants, vendors, manufacturers) on the proposed measures along with receipt of any associated audit reports or studies generated by the other entities or has the Customer made a decision or shown intent or consideration on implementing the proposed measures prior to any Developer engagement?",null,13,"Has the Customer started engagement or discussions with other entities (like  outside Consultants, vendors, manufacturers) on the proposed measures along with receipt of any associated audit reports or studies generated by the other entities or has the Customer made a decision or shown intent or consideration on implementing the proposed measures prior to any Developer engagement?",null,13,"Has the Customer started engagement or discussions with other entities (like  outside Consultants, vendors, manufacturers) on the proposed measures along with receipt of any associated audit reports or studies generated by the other entities or has the Customer made a decision or shown intent or consideration on implementing the proposed measures prior to any Developer engagement?",null,13,"Has the Customer started engagement or discussions with other entities (like  outside Consultants, vendors, manufacturers) on the proposed measures along with receipt of any associated audit reports or studies generated by the other entities or has the Customer made a decision or shown intent or consideration on implementing the proposed measures prior to any Developer engagement?",null,13,"Has the Customer started engagement or discussions with other entities (like  outside Consultants, vendors, manufacturers) on the proposed measures along with receipt of any associated audit reports or studies generated by the other entities or has the Customer made a decision or shown intent or consideration on implementing the proposed measures prior to any Developer engagement?",null,13,"Has the Customer started engagement or discussions with other entities (like  outside Consultants, vendors, manufacturers) on the proposed measures along with receipt of any associated audit reports or studies generated by the other entities or has the Customer made a decision or shown intent or consideration on implementing the proposed measures prior to any Developer engagement?",null,13,"Has the Customer started engagement or discussions with other entities (like  outside Consultants, vendors, manufacturers) on the proposed measures along with receipt of any associated audit reports or studies generated by the other entities or has the Customer made a decision or shown intent or consideration on implementing the proposed measures prior to any Developer engagement?",null,13,"Has the Customer started engagement or discussions with other entities (like  outside Consultants, vendors, manufacturers) on the proposed measures along with receipt of any associated audit reports or studies generated by the other entities or has the Customer made a decision or shown intent or consideration on implementing the proposed measures prior to any Developer engagement?",null,13,"Has the Customer started engagement or discussions with other entities (like  outside Consultants, vendors, manufacturers) on the proposed measures along with receipt of any associated audit reports or studies generated by the other entities or has the Customer made a decision or shown intent or consideration on implementing the proposed measures prior to any Developer engagement?",null,13,"Has the Customer started engagement or discussions with other entities (like  outside Consultants, vendors, manufacturers) on the proposed measures along with receipt of any associated audit reports or studies generated by the other entities or has the Customer made a decision or shown intent or consideration on implementing the proposed measures prior to any Developer engagement?"]
[]
[]
[14,"Is an audit report, energy/cost/option analysis/presentation or equipment test available ? If yes, describe the communications and state when the audit report, energy/cost/option anaylsis/presentation was made or equipment test conducted and by whom.\nNote: Audit reports or equipment tests are recommended to be no more than one (1) year old.",null,14,"Is an audit report, energy/cost/option analysis/presentation or equipment test available ? If yes, describe the communications and state when the audit report, energy/cost/option anaylsis/presentation was made or equipment test conducted and by whom.\nNote: Audit reports or equipment tests are recommended to be no more than one (1) year old.",null,14,"Is an audit report, energy/cost/option analysis/presentation or equipment test available ? If yes, describe the communications and state when the audit report, energy/cost/option anaylsis/presentation was made or equipment test conducted and by whom.\nNote: Audit reports or equipment tests are recommended to be no more than one (1) year old.",null,14,"Is an audit report, energy/cost/option analysis/presentation or equipment test available ? If yes, describe the communications and state when the audit report, energy/cost/option anaylsis/presentation was made or equipment test conducted and by whom.\nNote: Audit reports or equipment tests are recommended to be no more than one (1) year old.",null,14,"Is an audit report, energy/cost/option analysis/presentation or equipment test available ? If yes, describe the communications and state when the audit report, energy/cost/option anaylsis/presentation was made or equipment test conducted and by whom.\nNote: Audit reports or equipment tests are recommended to be no more than one (1) year old.",null,14,"Is an audit report, energy/cost/option analysis/presentation or equipment test available ? If yes, describe the communications and state when the audit report, energy/cost/option anaylsis/presentation was made or equipment test conducted and by whom.\nNote: Audit reports or equipment tests are recommended to be no more than one (1) year old.",null,14,"Is an audit report, energy/cost/option analysis/presentation or equipment test available ? If yes, describe the communications and state when the audit report, energy/cost/option anaylsis/presentation was made or equipment test conducted and by whom.\nNote: Audit reports or equipment tests are recommended to be no more than one (1) year old.",null,14,"Is an audit report, energy/cost/option analysis/presentation or equipment test available ? If yes, describe the communications and state when the audit report, energy/cost/option anaylsis/presentation was made or equipment test conducted and by whom.\nNote: Audit reports or equipment tests are recommended to be no more than one (1) year old.",null,14,"Is an audit report, energy/cost/option analysis/presentation or equipment test available ? If yes, describe the communications and state when the audit report, energy/cost/option anaylsis/presentation was made or equipment test conducted and by whom.\nNote: Audit reports or equipment tests are recommended to be no more than one (1) year old.",null,14,"Is an audit report, energy/cost/option analysis/presentation or equipment test available ? If yes, describe the communications and state when the audit report, energy/cost/option anaylsis/presentation was made or equipment test conducted and by whom.\nNote: Audit reports or equipment tests are recommended to be no more than one (1) year old.",null,14,"Is an audit report, energy/cost/option analysis/presentation or equipment test available ? If yes, describe the communications and state when the audit report, energy/cost/option anaylsis/presentation was made or equipment test conducted and by whom.\nNote: Audit reports or equipment tests are recommended to be no more than one (1) year old.",null,14,"Is an audit report, energy/cost/option analysis/presentation or equipment test available ? If yes, describe the communications and state when the audit report, energy/cost/option anaylsis/presentation was made or equipment test conducted and by whom.\nNote: Audit reports or equipment tests are recommended to be no more than one (1) year old.",null,14,"Is an audit report, energy/cost/option analysis/presentation or equipment test available ? If yes, describe the communications and state when the audit report, energy/cost/option anaylsis/presentation was made or equipment test conducted and by whom.\nNote: Audit reports or equipment tests are recommended to be no more than one (1) year old.",null,14,"Is an audit report, energy/cost/option analysis/presentation or equipment test available ? If yes, describe the communications and state when the audit report, energy/cost/option anaylsis/presentation was made or equipment test conducted and by whom.\nNote: Audit reports or equipment tests are recommended to be no more than one (1) year old.",null,14,"Is an audit report, energy/cost/option analysis/presentation or equipment test available ? If yes, describe the communications and state when the audit report, energy/cost/option anaylsis/presentation was made or equipment test conducted and by whom.\nNote: Audit reports or equipment tests are recommended to be no more than one (1) year old."]
[]
[]
[15,"Is energy efficiency the only benefit derived from the proposed measure (refer to the Non-EE Drivers tab)? If No, please describe other non-energy efficiency benefits of the proposed measure, i.e. reduced maintenance, greater access to spare parts, reduced operating costs, etc.",null,15,"Is energy efficiency the only benefit derived from the proposed measure (refer to the Non-EE Drivers tab)? If No, please describe other non-energy efficiency benefits of the proposed measure, i.e. reduced maintenance, greater access to spare parts, reduced operating costs, etc.",null,15,"Is energy efficiency the only benefit derived from the proposed measure (refer to the Non-EE Drivers tab)? If No, please describe other non-energy efficiency benefits of the proposed measure, i.e. reduced maintenance, greater access to spare parts, reduced operating costs, etc.",null,15,"Is energy efficiency the only benefit derived from the proposed measure (refer to the Non-EE Drivers tab)? If No, please describe other non-energy efficiency benefits of the proposed measure, i.e. reduced maintenance, greater access to spare parts, reduced operating costs, etc.",null,15,"Is energy efficiency the only benefit derived from the proposed measure (refer to the Non-EE Drivers tab)? If No, please describe other non-energy efficiency benefits of the proposed measure, i.e. reduced maintenance, greater access to spare parts, reduced operating costs, etc.",null,15,"Is energy efficiency the only benefit derived from the proposed measure (refer to the Non-EE Drivers tab)? If No, please describe other non-energy efficiency benefits of the proposed measure, i.e. reduced maintenance, greater access to spare parts, reduced operating costs, etc.",null,15,"Is energy efficiency the only benefit derived from the proposed measure (refer to the Non-EE Drivers tab)? If No, please describe other non-energy efficiency benefits of the proposed measure, i.e. reduced maintenance, greater access to spare parts, reduced operating costs, etc.",null,15,"Is energy efficiency the only benefit derived from the proposed measure (refer to the Non-EE Drivers tab)? If No, please describe other non-energy efficiency benefits of the proposed measure, i.e. reduced maintenance, greater access to spare parts, reduced operating costs, etc.",null,15,"Is energy efficiency the only benefit derived from the proposed measure (refer to the Non-EE Drivers tab)? If No, please describe other non-energy efficiency benefits of the proposed measure, i.e. reduced maintenance, greater access to spare parts, reduced operating costs, etc.",null,15,"Is energy efficiency the only benefit derived from the proposed measure (refer to the Non-EE Drivers tab)? If No, please describe other non-energy efficiency benefits of the proposed measure, i.e. reduced maintenance, greater access to spare parts, reduced operating costs, etc.",null,15,"Is energy efficiency the only benefit derived from the proposed measure (refer to the Non-EE Drivers tab)? If No, please describe other non-energy efficiency benefits of the proposed measure, i.e. reduced maintenance, greater access to spare parts, reduced operating costs, etc.",null,15,"Is energy efficiency the only benefit derived from the proposed measure (refer to the Non-EE Drivers tab)? If No, please describe other non-energy efficiency benefits of the proposed measure, i.e. reduced maintenance, greater access to spare parts, reduced operating costs, etc.",null,15,"Is energy efficiency the only benefit derived from the proposed measure (refer to the Non-EE Drivers tab)? If No, please describe other non-energy efficiency benefits of the proposed measure, i.e. reduced maintenance, greater access to spare parts, reduced operating costs, etc.",null,15,"Is energy efficiency the only benefit derived from the proposed measure (refer to the Non-EE Drivers tab)? If No, please describe other non-energy efficiency benefits of the proposed measure, i.e. reduced maintenance, greater access to spare parts, reduced operating costs, etc.",null,15,"Is energy efficiency the only benefit derived from the proposed measure (refer to the Non-EE Drivers tab)? If No, please describe other non-energy efficiency benefits of the proposed measure, i.e. reduced maintenance, greater access to spare parts, reduced operating costs, etc."]
[]
[]
[16,"If the utility energy efficiency program was not available, what equipment/design alternative would most likely have been chosen?",null,16,"If the utility energy efficiency program was not available, what equipment/design alternative would most likely have been chosen?",null,16,"If the utility energy efficiency program was not available, what equipment/design alternative would most likely have been chosen?",null,16,"If the utility energy efficiency program was not available, what equipment/design alternative would most likely have been chosen?",null,16,"If the utility energy efficiency program was not available, what equipment/design alternative would most likely have been chosen?",null,16,"If the utility energy efficiency program was not available, what equipment/design alternative would most likely have been chosen?",null,16,"If the utility energy efficiency program was not available, what equipment/design alternative would most likely have been chosen?",null,16,"If the utility energy efficiency program was not available, what equipment/design alternative would most likely have been chosen?",null,16,"If the utility energy efficiency program was not available, what equipment/design alternative would most likely have been chosen?",null,16,"If the utility energy efficiency program was not available, what equipment/design alternative would most likely have been chosen?",null,16,"If the utility energy efficiency program was not available, what equipment/design alternative would most likely have been chosen?",null,16,"If the utility energy efficiency program was not available, what equipment/design alternative would most likely have been chosen?",null,16,"If the utility energy efficiency program was not available, what equipment/design alternative would most likely have been chosen?",null,16,"If the utility energy efficiency program was not available, what equipment/design alternative would most likely have been chosen?",null,16,"If the utility energy efficiency program was not available, what equipment/design alternative would most likely have been chosen?"]
[]
[]
[17,"Has this type of project been completed at this site or other sites within the last 5 years ? If yes, how many similar measures were installed for this site and other sites for the same Customer?",null,17,"Has this type of project been completed at this site or other sites within the last 5 years ? If yes, how many similar measures were installed for this site and other sites for the same Customer?",null,17,"Has this type of project been completed at this site or other sites within the last 5 years ? If yes, how many similar measures were installed for this site and other sites for the same Customer?",null,17,"Has this type of project been completed at this site or other sites within the last 5 years ? If yes, how many similar measures were installed for this site and other sites for the same Customer?",null,17,"Has this type of project been completed at this site or other sites within the last 5 years ? If yes, how many similar measures were installed for this site and other sites for the same Customer?",null,17,"Has this type of project been completed at this site or other sites within the last 5 years ? If yes, how many similar measures were installed for this site and other sites for the same Customer?",null,17,"Has this type of project been completed at this site or other sites within the last 5 years ? If yes, how many similar measures were installed for this site and other sites for the same Customer?",null,17,"Has this type of project been completed at this site or other sites within the last 5 years ? If yes, how many similar measures were installed for this site and other sites for the same Customer?",null,17,"Has this type of project been completed at this site or other sites within the last 5 years ? If yes, how many similar measures were installed for this site and other sites for the same Customer?",null,17,"Has this type of project been completed at this site or other sites within the last 5 years ? If yes, how many similar measures were installed for this site and other sites for the same Customer?",null,17,"Has this type of project been completed at this site or other sites within the last 5 years ? If yes, how many similar measures were installed for this site and other sites for the same Customer?",null,17,"Has this type of project been completed at this site or other sites within the last 5 years ? If yes, how many similar measures were installed for this site and other sites for the same Customer?",null,17,"Has this type of project been completed at this site or other sites within the last 5 years ? If yes, how many similar measures were installed for this site and other sites for the same Customer?",null,17,"Has this type of project been completed at this site or other sites within the last 5 years ? If yes, how many similar measures were installed for this site and other sites for the same Customer?",null,17,"Has this type of project been completed at this site or other sites within the last 5 years ? If yes, how many similar measures were installed for this site and other sites for the same Customer?"]
[]
[]
[18,"What are the Customer’s criteria to proceed in implementing this project; i.e. Payback, ROI, NPV (please identify the source of this criteria; i.e company policy, personal preference, etc.)? ",null,18,"What are the Customer’s criteria to proceed in implementing this project; i.e. Payback, ROI, NPV (please identify the source of this criteria; i.e company policy, personal preference, etc.)? ",null,18,"What are the Customer’s criteria to proceed in implementing this project; i.e. Payback, ROI, NPV (please identify the source of this criteria; i.e company policy, personal preference, etc.)? ",null,18,"What are the Customer’s criteria to proceed in implementing this project; i.e. Payback, ROI, NPV (please identify the source of this criteria; i.e company policy, personal preference, etc.)? ",null,18,"What are the Customer’s criteria to proceed in implementing this project; i.e. Payback, ROI, NPV (please identify the source of this criteria; i.e company policy, personal preference, etc.)? ",null,18,"What are the Customer’s criteria to proceed in implementing this project; i.e. Payback, ROI, NPV (please identify the source of this criteria; i.e company policy, personal preference, etc.)? ",null,18,"What are the Customer’s criteria to proceed in implementing this project; i.e. Payback, ROI, NPV (please identify the source of this criteria; i.e company policy, personal preference, etc.)? ",null,18,"What are the Customer’s criteria to proceed in implementing this project; i.e. Payback, ROI, NPV (please identify the source of this criteria; i.e company policy, personal preference, etc.)? ",null,18,"What are the Customer’s criteria to proceed in implementing this project; i.e. Payback, ROI, NPV (please identify the source of this criteria; i.e company policy, personal preference, etc.)? ",null,18,"What are the Customer’s criteria to proceed in implementing this project; i.e. Payback, ROI, NPV (please identify the source of this criteria; i.e company policy, personal preference, etc.)? ",null,18,"What are the Customer’s criteria to proceed in implementing this project; i.e. Payback, ROI, NPV (please identify the source of this criteria; i.e company policy, personal preference, etc.)? ",null,18,"What are the Customer’s criteria to proceed in implementing this project; i.e. Payback, ROI, NPV (please identify the source of this criteria; i.e company policy, personal preference, etc.)? ",null,18,"What are the Customer’s criteria to proceed in implementing this project; i.e. Payback, ROI, NPV (please identify the source of this criteria; i.e company policy, personal preference, etc.)? ",null,18,"What are the Customer’s criteria to proceed in implementing this project; i.e. Payback, ROI, NPV (please identify the source of this criteria; i.e company policy, personal preference, etc.)? ",null,18,"What are the Customer’s criteria to proceed in implementing this project; i.e. Payback, ROI, NPV (please identify the source of this criteria; i.e company policy, personal preference, etc.)? "]
[]
[]
["a","What is the estimated Simple Payback period for the project before and after incentives (years/months)?",null,"a","What is the estimated Simple Payback period for the project before and after incentives (years/months)?",null,"a","What is the estimated Simple Payback period for the project before and after incentives (years/months)?",null,"a","What is the estimated Simple Payback period for the project before and after incentives (years/months)?",null,"a","What is the estimated Simple Payback period for the project before and after incentives (years/months)?",null,"a","What is the estimated Simple Payback period for the project before and after incentives (years/months)?",null,"a","What is the estimated Simple Payback period for the project before and after incentives (years/months)?",null,"a","What is the estimated Simple Payback period for the project before and after incentives (years/months)?",null,"a","What is the estimated Simple Payback period for the project before and after incentives (years/months)?",null,"a","What is the estimated Simple Payback period for the project before and after incentives (years/months)?",null,"a","What is the estimated Simple Payback period for the project before and after incentives (years/months)?",null,"a","What is the estimated Simple Payback period for the project before and after incentives (years/months)?",null,"a","What is the estimated Simple Payback period for the project before and after incentives (years/months)?",null,"a","What is the estimated Simple Payback period for the project before and after incentives (years/months)?",null,"a","What is the estimated Simple Payback period for the project before and after incentives (years/months)?"]
[]
[]
[19,"Has budget been allocated for the project or is funding already in the \"books\" for the measure?",null,19,"Has budget been allocated for the project or is funding already in the \"books\" for the measure?",null,19,"Has budget been allocated for the project or is funding already in the \"books\" for the measure?",null,19,"Has budget been allocated for the project or is funding already in the \"books\" for the measure?",null,19,"Has budget been allocated for the project or is funding already in the \"books\" for the measure?",null,19,"Has budget been allocated for the project or is funding already in the \"books\" for the measure?",null,19,"Has budget been allocated for the project or is funding already in the \"books\" for the measure?",null,19,"Has budget been allocated for the project or is funding already in the \"books\" for the measure?",null,19,"Has budget been allocated for the project or is funding already in the \"books\" for the measure?",null,19,"Has budget been allocated for the project or is funding already in the \"books\" for the measure?",null,19,"Has budget been allocated for the project or is funding already in the \"books\" for the measure?",null,19,"Has budget been allocated for the project or is funding already in the \"books\" for the measure?",null,19,"Has budget been allocated for the project or is funding already in the \"books\" for the measure?",null,19,"Has budget been allocated for the project or is funding already in the \"books\" for the measure?",null,19,"Has budget been allocated for the project or is funding already in the \"books\" for the measure?"]
[]
[]
["COMPLETE 20-28 IF QUESTION 1 IS NOT A \"NEW\" INSTALLATION TYPE",null,null,"COMPLETE 20-28 IF QUESTION 1 IS NOT A \"NEW\" INSTALLATION TYPE",null,null,"COMPLETE 20-28 IF QUESTION 1 IS NOT A \"NEW\" INSTALLATION TYPE",null,null,"COMPLETE 20-28 IF QUESTION 1 IS NOT A \"NEW\" INSTALLATION TYPE",null,null,"COMPLETE 20-28 IF QUESTION 1 IS NOT A \"NEW\" INSTALLATION TYPE",null,null,"COMPLETE 20-28 IF QUESTION 1 IS NOT A \"NEW\" INSTALLATION TYPE",null,null,"COMPLETE 20-28 IF QUESTION 1 IS NOT A \"NEW\" INSTALLATION TYPE",null,null,"COMPLETE 20-28 IF QUESTION 1 IS NOT A \"NEW\" INSTALLATION TYPE",null,null,"COMPLETE 20-28 IF QUESTION 1 IS NOT A \"NEW\" INSTALLATION TYPE",null,null,"COMPLETE 20-28 IF QUESTION 1 IS NOT A \"NEW\" INSTALLATION TYPE",null,null,"COMPLETE 20-28 IF QUESTION 1 IS NOT A \"NEW\" INSTALLATION TYPE",null,null,"COMPLETE 20-28 IF QUESTION 1 IS NOT A \"NEW\" INSTALLATION TYPE",null,null,"COMPLETE 20-28 IF QUESTION 1 IS NOT A \"NEW\" INSTALLATION TYPE",null,null,"COMPLETE 20-28 IF QUESTION 1 IS NOT A \"NEW\" INSTALLATION TYPE",null,null,"COMPLETE 20-28 IF QUESTION 1 IS NOT A \"NEW\" INSTALLATION TYPE"]
[20,"Has a calculation approach been decided yet? If so, what is the calculation tool name that is planned to be used?","--Select--",20,"Has a calculation approach been decided yet? If so, what is the calculation tool name that is planned to be used?","--Select--",20,"Has a calculation approach been decided yet? If so, what is the calculation tool name that is planned to be used?","--Select--",20,"Has a calculation approach been decided yet? If so, what is the calculation tool name that is planned to be used?","--Select--",20,"Has a calculation approach been decided yet? If so, what is the calculation tool name that is planned to be used?","--Select--",20,"Has a calculation approach been decided yet? If so, what is the calculation tool name that is planned to be used?","--Select--",20,"Has a calculation approach been decided yet? If so, what is the calculation tool name that is planned to be used?","--Select--",20,"Has a calculation approach been decided yet? If so, what is the calculation tool name that is planned to be used?","--Select--",20,"Has a calculation approach been decided yet? If so, what is the calculation tool name that is planned to be used?","--Select--",20,"Has a calculation approach been decided yet? If so, what is the calculation tool name that is planned to be used?","--Select--",20,"Has a calculation approach been decided yet? If so, what is the calculation tool name that is planned to be used?","--Select--",20,"Has a calculation approach been decided yet? If so, what is the calculation tool name that is planned to be used?","--Select--",20,"Has a calculation approach been decided yet? If so, what is the calculation tool name that is planned to be used?","--Select--",20,"Has a calculation approach been decided yet? If so, what is the calculation tool name that is planned to be used?","--Select--",20,"Has a calculation approach been decided yet? If so, what is the calculation tool name that is planned to be used?","--Select--"]
[]
[]
[21,"Is the existing equipment currently functioning, in use, and providing the required Level of Service?","--Select--",21,"Is the existing equipment currently functioning, in use, and providing the required Level of Service?","--Select--",21,"Is the existing equipment currently functioning, in use, and providing the required Level of Service?","--Select--",21,"Is the existing equipment currently functioning, in use, and providing the required Level of Service?","--Select--",21,"Is the existing equipment currently functioning, in use, and providing the required Level of Service?","--Select--",21,"Is the existing equipment currently functioning, in use, and providing the required Level of Service?","--Select--",21,"Is the existing equipment currently functioning, in use, and providing the required Level of Service?","--Select--",21,"Is the existing equipment currently functioning, in use, and providing the required Level of Service?","--Select--",21,"Is the existing equipment currently functioning, in use, and providing the required Level of Service?","--Select--",21,"Is the existing equipment currently functioning, in use, and providing the required Level of Service?","--Select--",21,"Is the existing equipment currently functioning, in use, and providing the required Level of Service?","--Select--",21,"Is the existing equipment currently functioning, in use, and providing the required Level of Service?","--Select--",21,"Is the existing equipment currently functioning, in use, and providing the required Level of Service?","--Select--",21,"Is the existing equipment currently functioning, in use, and providing the required Level of Service?","--Select--",21,"Is the existing equipment currently functioning, in use, and providing the required Level of Service?","--Select--"]
[]
[22,"How long has the existing equipment/system been in operation or when was the equipment originally installed? Include separate dates for major overhauls.",null,22,"How long has the existing equipment/system been in operation or when was the equipment originally installed? Include separate dates for major overhauls.",null,22,"How long has the existing equipment/system been in operation or when was the equipment originally installed? Include separate dates for major overhauls.",null,22,"How long has the existing equipment/system been in operation or when was the equipment originally installed? Include separate dates for major overhauls.",null,22,"How long has the existing equipment/system been in operation or when was the equipment originally installed? Include separate dates for major overhauls.",null,22,"How long has the existing equipment/system been in operation or when was the equipment originally installed? Include separate dates for major overhauls.",null,22,"How long has the existing equipment/system been in operation or when was the equipment originally installed? Include separate dates for major overhauls.",null,22,"How long has the existing equipment/system been in operation or when was the equipment originally installed? Include separate dates for major overhauls.",null,22,"How long has the existing equipment/system been in operation or when was the equipment originally installed? Include separate dates for major overhauls.",null,22,"How long has the existing equipment/system been in operation or when was the equipment originally installed? Include separate dates for major overhauls.",null,22,"How long has the existing equipment/system been in operation or when was the equipment originally installed? Include separate dates for major overhauls.",null,22,"How long has the existing equipment/system been in operation or when was the equipment originally installed? Include separate dates for major overhauls.",null,22,"How long has the existing equipment/system been in operation or when was the equipment originally installed? Include separate dates for major overhauls.",null,22,"How long has the existing equipment/system been in operation or when was the equipment originally installed? Include separate dates for major overhauls.",null,22,"How long has the existing equipment/system been in operation or when was the equipment originally installed? Include separate dates for major overhauls."]
[]
[]
[23,"Is the measure implementation due to either a predictive /preventive/ condition based/ scheduled/ planned/ routine/corrective/emergency maintenance effort ? If Yes, describe the maintenance effort or findings.",null,23,"Is the measure implementation due to either a predictive /preventive/ condition based/ scheduled/ planned/ routine/corrective/emergency maintenance effort ? If Yes, describe the maintenance effort or findings.",null,23,"Is the measure implementation due to either a predictive /preventive/ condition based/ scheduled/ planned/ routine/corrective/emergency maintenance effort ? If Yes, describe the maintenance effort or findings.",null,23,"Is the measure implementation due to either a predictive /preventive/ condition based/ scheduled/ planned/ routine/corrective/emergency maintenance effort ? If Yes, describe the maintenance effort or findings.",null,23,"Is the measure implementation due to either a predictive /preventive/ condition based/ scheduled/ planned/ routine/corrective/emergency maintenance effort ? If Yes, describe the maintenance effort or findings.",null,23,"Is the measure implementation due to either a predictive /preventive/ condition based/ scheduled/ planned/ routine/corrective/emergency maintenance effort ? If Yes, describe the maintenance effort or findings.",null,23,"Is the measure implementation due to either a predictive /preventive/ condition based/ scheduled/ planned/ routine/corrective/emergency maintenance effort ? If Yes, describe the maintenance effort or findings.",null,23,"Is the measure implementation due to either a predictive /preventive/ condition based/ scheduled/ planned/ routine/corrective/emergency maintenance effort ? If Yes, describe the maintenance effort or findings.",null,23,"Is the measure implementation due to either a predictive /preventive/ condition based/ scheduled/ planned/ routine/corrective/emergency maintenance effort ? If Yes, describe the maintenance effort or findings.",null,23,"Is the measure implementation due to either a predictive /preventive/ condition based/ scheduled/ planned/ routine/corrective/emergency maintenance effort ? If Yes, describe the maintenance effort or findings.",null,23,"Is the measure implementation due to either a predictive /preventive/ condition based/ scheduled/ planned/ routine/corrective/emergency maintenance effort ? If Yes, describe the maintenance effort or findings.",null,23,"Is the measure implementation due to either a predictive /preventive/ condition based/ scheduled/ planned/ routine/corrective/emergency maintenance effort ? If Yes, describe the maintenance effort or findings.",null,23,"Is the measure implementation due to either a predictive /preventive/ condition based/ scheduled/ planned/ routine/corrective/emergency maintenance effort ? If Yes, describe the maintenance effort or findings.",null,23,"Is the measure implementation due to either a predictive /preventive/ condition based/ scheduled/ planned/ routine/corrective/emergency maintenance effort ? If Yes, describe the maintenance effort or findings.",null,23,"Is the measure implementation due to either a predictive /preventive/ condition based/ scheduled/ planned/ routine/corrective/emergency maintenance effort ? If Yes, describe the maintenance effort or findings."]
[]
[]
[24,"Is documentation of ongoing maintenance to the existing equipment available?","--Select--",24,"Is documentation of ongoing maintenance to the existing equipment available?","--Select--",24,"Is documentation of ongoing maintenance to the existing equipment available?","--Select--",24,"Is documentation of ongoing maintenance to the existing equipment available?","--Select--",24,"Is documentation of ongoing maintenance to the existing equipment available?","--Select--",24,"Is documentation of ongoing maintenance to the existing equipment available?","--Select--",24,"Is documentation of ongoing maintenance to the existing equipment available?","--Select--",24,"Is documentation of ongoing maintenance to the existing equipment available?","--Select--",24,"Is documentation of ongoing maintenance to the existing equipment available?","--Select--",24,"Is documentation of ongoing maintenance to the existing equipment available?","--Select--",24,"Is documentation of ongoing maintenance to the existing equipment available?","--Select--",24,"Is documentation of ongoing maintenance to the existing equipment available?","--Select--",24,"Is documentation of ongoing maintenance to the existing equipment available?","--Select--",24,"Is documentation of ongoing maintenance to the existing equipment available?","--Select--",24,"Is documentation of ongoing maintenance to the existing equipment available?","--Select--"]
[]
[25,"Is the proposed measure due to government or company requirements?","--Select--",25,"Is the proposed measure due to government or company requirements?","--Select--",25,"Is the proposed measure due to government or company requirements?","--Select--",25,"Is the proposed measure due to government or company requirements?","--Select--",25,"Is the proposed measure due to government or company requirements?","--Select--",25,"Is the proposed measure due to government or company requirements?","--Select--",25,"Is the proposed measure due to government or company requirements?","--Select--",25,"Is the proposed measure due to government or company requirements?","--Select--",25,"Is the proposed measure due to government or company requirements?","--Select--",25,"Is the proposed measure due to government or company requirements?","--Select--",25,"Is the proposed measure due to government or company requirements?","--Select--",25,"Is the proposed measure due to government or company requirements?","--Select--",25,"Is the proposed measure due to government or company requirements?","--Select--",25,"Is the proposed measure due to government or company requirements?","--Select--",25,"Is the proposed measure due to government or company requirements?","--Select--"]
[]
[26,"Is the proposed measure due to an original equipment installation Code requirement?","--Select--",26,"Is the proposed measure due to an original equipment installation Code requirement?","--Select--",26,"Is the proposed measure due to an original equipment installation Code requirement?","--Select--",26,"Is the proposed measure due to an original equipment installation Code requirement?","--Select--",26,"Is the proposed measure due to an original equipment installation Code requirement?","--Select--",26,"Is the proposed measure due to an original equipment installation Code requirement?","--Select--",26,"Is the proposed measure due to an original equipment installation Code requirement?","--Select--",26,"Is the proposed measure due to an original equipment installation Code requirement?","--Select--",26,"Is the proposed measure due to an original equipment installation Code requirement?","--Select--",26,"Is the proposed measure due to an original equipment installation Code requirement?","--Select--",26,"Is the proposed measure due to an original equipment installation Code requirement?","--Select--",26,"Is the proposed measure due to an original equipment installation Code requirement?","--Select--",26,"Is the proposed measure due to an original equipment installation Code requirement?","--Select--",26,"Is the proposed measure due to an original equipment installation Code requirement?","--Select--",26,"Is the proposed measure due to an original equipment installation Code requirement?","--Select--"]
[]
[27,"Is the measure providing an equivalent Level of Service to what is provided in the Customer's current operations? If the EE measure provides either enhanced or reduced Levels of Service compared to the Baseline, describe how the energy savings will be normalized to comparable Levels of Service.",null,27,"Is the measure providing an equivalent Level of Service to what is provided in the Customer's current operations? If the EE measure provides either enhanced or reduced Levels of Service compared to the Baseline, describe how the energy savings will be normalized to comparable Levels of Service.",null,27,"Is the measure providing an equivalent Level of Service to what is provided in the Customer's current operations? If the EE measure provides either enhanced or reduced Levels of Service compared to the Baseline, describe how the energy savings will be normalized to comparable Levels of Service.",null,27,"Is the measure providing an equivalent Level of Service to what is provided in the Customer's current operations? If the EE measure provides either enhanced or reduced Levels of Service compared to the Baseline, describe how the energy savings will be normalized to comparable Levels of Service.",null,27,"Is the measure providing an equivalent Level of Service to what is provided in the Customer's current operations? If the EE measure provides either enhanced or reduced Levels of Service compared to the Baseline, describe how the energy savings will be normalized to comparable Levels of Service.",null,27,"Is the measure providing an equivalent Level of Service to what is provided in the Customer's current operations? If the EE measure provides either enhanced or reduced Levels of Service compared to the Baseline, describe how the energy savings will be normalized to comparable Levels of Service.",null,27,"Is the measure providing an equivalent Level of Service to what is provided in the Customer's current operations? If the EE measure provides either enhanced or reduced Levels of Service compared to the Baseline, describe how the energy savings will be normalized to comparable Levels of Service.",null,27,"Is the measure providing an equivalent Level of Service to what is provided in the Customer's current operations? If the EE measure provides either enhanced or reduced Levels of Service compared to the Baseline, describe how the energy savings will be normalized to comparable Levels of Service.",null,27,"Is the measure providing an equivalent Level of Service to what is provided in the Customer's current operations? If the EE measure provides either enhanced or reduced Levels of Service compared to the Baseline, describe how the energy savings will be normalized to comparable Levels of Service.",null,27,"Is the measure providing an equivalent Level of Service to what is provided in the Customer's current operations? If the EE measure provides either enhanced or reduced Levels of Service compared to the Baseline, describe how the energy savings will be normalized to comparable Levels of Service.",null,27,"Is the measure providing an equivalent Level of Service to what is provided in the Customer's current operations? If the EE measure provides either enhanced or reduced Levels of Service compared to the Baseline, describe how the energy savings will be normalized to comparable Levels of Service.",null,27,"Is the measure providing an equivalent Level of Service to what is provided in the Customer's current operations? If the EE measure provides either enhanced or reduced Levels of Service compared to the Baseline, describe how the energy savings will be normalized to comparable Levels of Service.",null,27,"Is the measure providing an equivalent Level of Service to what is provided in the Customer's current operations? If the EE measure provides either enhanced or reduced Levels of Service compared to the Baseline, describe how the energy savings will be normalized to comparable Levels of Service.",null,27,"Is the measure providing an equivalent Level of Service to what is provided in the Customer's current operations? If the EE measure provides either enhanced or reduced Levels of Service compared to the Baseline, describe how the energy savings will be normalized to comparable Levels of Service.",null,27,"Is the measure providing an equivalent Level of Service to what is provided in the Customer's current operations? If the EE measure provides either enhanced or reduced Levels of Service compared to the Baseline, describe how the energy savings will be normalized to comparable Levels of Service."]
[]
[]
[28,"Is the measure being implemented at the same time as another separate retrofit/upgrade project not included in this ESD? If Yes, describe the scope of work of the separate retrofit/upgrade project.",null,28,"Is the measure being implemented at the same time as another separate retrofit/upgrade project not included in this ESD? If Yes, describe the scope of work of the separate retrofit/upgrade project.",null,28,"Is the measure being implemented at the same time as another separate retrofit/upgrade project not included in this ESD? If Yes, describe the scope of work of the separate retrofit/upgrade project.",null,28,"Is the measure being implemented at the same time as another separate retrofit/upgrade project not included in this ESD? If Yes, describe the scope of work of the separate retrofit/upgrade project.",null,28,"Is the measure being implemented at the same time as another separate retrofit/upgrade project not included in this ESD? If Yes, describe the scope of work of the separate retrofit/upgrade project.",null,28,"Is the measure being implemented at the same time as another separate retrofit/upgrade project not included in this ESD? If Yes, describe the scope of work of the separate retrofit/upgrade project.",null,28,"Is the measure being implemented at the same time as another separate retrofit/upgrade project not included in this ESD? If Yes, describe the scope of work of the separate retrofit/upgrade project.",null,28,"Is the measure being implemented at the same time as another separate retrofit/upgrade project not included in this ESD? If Yes, describe the scope of work of the separate retrofit/upgrade project.",null,28,"Is the measure being implemented at the same time as another separate retrofit/upgrade project not included in this ESD? If Yes, describe the scope of work of the separate retrofit/upgrade project.",null,28,"Is the measure being implemented at the same time as another separate retrofit/upgrade project not included in this ESD? If Yes, describe the scope of work of the separate retrofit/upgrade project.",null,28,"Is the measure being implemented at the same time as another separate retrofit/upgrade project not included in this ESD? If Yes, describe the scope of work of the separate retrofit/upgrade project.",null,28,"Is the measure being implemented at the same time as another separate retrofit/upgrade project not included in this ESD? If Yes, describe the scope of work of the separate retrofit/upgrade project.",null,28,"Is the measure being implemented at the same time as another separate retrofit/upgrade project not included in this ESD? If Yes, describe the scope of work of the separate retrofit/upgrade project.",null,28,"Is the measure being implemented at the same time as another separate retrofit/upgrade project not included in this ESD? If Yes, describe the scope of work of the separate retrofit/upgrade project.",null,28,"Is the measure being implemented at the same time as another separate retrofit/upgrade project not included in this ESD? If Yes, describe the scope of work of the separate retrofit/upgrade project."]
[]
[]
[29,"Did an entity, currently performing Custom Technical Reviews for SCE, assist, participate, was involved or will be involved in any way with the development of this measure or project? If Yes, please identify the entity, firm or company and their role.",null,29,"Did an entity, currently performing Custom Technical Reviews for SCE, assist, participate, was involved or will be involved in any way with the development of this measure or project? If Yes, please identify the entity, firm or company and their role.",null,29,"Did an entity, currently performing Custom Technical Reviews for SCE, assist, participate, was involved or will be involved in any way with the development of this measure or project? If Yes, please identify the entity, firm or company and their role.",null,29,"Did an entity, currently performing Custom Technical Reviews for SCE, assist, participate, was involved or will be involved in any way with the development of this measure or project? If Yes, please identify the entity, firm or company and their role.",null,29,"Did an entity, currently performing Custom Technical Reviews for SCE, assist, participate, was involved or will be involved in any way with the development of this measure or project? If Yes, please identify the entity, firm or company and their role.",null,29,"Did an entity, currently performing Custom Technical Reviews for SCE, assist, participate, was involved or will be involved in any way with the development of this measure or project? If Yes, please identify the entity, firm or company and their role.",null,29,"Did an entity, currently performing Custom Technical Reviews for SCE, assist, participate, was involved or will be involved in any way with the development of this measure or project? If Yes, please identify the entity, firm or company and their role.",null,29,"Did an entity, currently performing Custom Technical Reviews for SCE, assist, participate, was involved or will be involved in any way with the development of this measure or project? If Yes, please identify the entity, firm or company and their role.",null,29,"Did an entity, currently performing Custom Technical Reviews for SCE, assist, participate, was involved or will be involved in any way with the development of this measure or project? If Yes, please identify the entity, firm or company and their role.",null,29,"Did an entity, currently performing Custom Technical Reviews for SCE, assist, participate, was involved or will be involved in any way with the development of this measure or project? If Yes, please identify the entity, firm or company and their role.",null,29,"Did an entity, currently performing Custom Technical Reviews for SCE, assist, participate, was involved or will be involved in any way with the development of this measure or project? If Yes, please identify the entity, firm or company and their role.",null,29,"Did an entity, currently performing Custom Technical Reviews for SCE, assist, participate, was involved or will be involved in any way with the development of this measure or project? If Yes, please identify the entity, firm or company and their role.",null,29,"Did an entity, currently performing Custom Technical Reviews for SCE, assist, participate, was involved or will be involved in any way with the development of this measure or project? If Yes, please identify the entity, firm or company and their role.",null,29,"Did an entity, currently performing Custom Technical Reviews for SCE, assist, participate, was involved or will be involved in any way with the development of this measure or project? If Yes, please identify the entity, firm or company and their role.",null,29,"Did an entity, currently performing Custom Technical Reviews for SCE, assist, participate, was involved or will be involved in any way with the development of this measure or project? If Yes, please identify the entity, firm or company and their role."]
[]
[]
["COMPLETE 30-31 IF QUESTION 1 IS AN \"AOE\" INSTALLATION TYPE",null,null,"COMPLETE 30-31 IF QUESTION 1 IS AN \"AOE\" INSTALLATION TYPE",null,null,"COMPLETE 30-31 IF QUESTION 1 IS AN \"AOE\" INSTALLATION TYPE",null,null,"COMPLETE 30-31 IF QUESTION 1 IS AN \"AOE\" INSTALLATION TYPE",null,null,"COMPLETE 30-31 IF QUESTION 1 IS AN \"AOE\" INSTALLATION TYPE",null,null,"COMPLETE 30-31 IF QUESTION 1 IS AN \"AOE\" INSTALLATION TYPE",null,null,"COMPLETE 30-31 IF QUESTION 1 IS AN \"AOE\" INSTALLATION TYPE",null,null,"COMPLETE 30-31 IF QUESTION 1 IS AN \"AOE\" INSTALLATION TYPE",null,null,"COMPLETE 30-31 IF QUESTION 1 IS AN \"AOE\" INSTALLATION TYPE",null,null,"COMPLETE 30-31 IF QUESTION 1 IS AN \"AOE\" INSTALLATION TYPE",null,null,"COMPLETE 30-31 IF QUESTION 1 IS AN \"AOE\" INSTALLATION TYPE",null,null,"COMPLETE 30-31 IF QUESTION 1 IS AN \"AOE\" INSTALLATION TYPE",null,null,"COMPLETE 30-31 IF QUESTION 1 IS AN \"AOE\" INSTALLATION TYPE",null,null,"COMPLETE 30-31 IF QUESTION 1 IS AN \"AOE\" INSTALLATION TYPE",null,null,"COMPLETE 30-31 IF QUESTION 1 IS AN \"AOE\" INSTALLATION TYPE"]
[30,"How many major repairs were done, on the Host equipment or the part of the system the measure plans to replace or augment, in the last 3 years?",null,30,"How many major repairs were done, on the Host equipment or the part of the system the measure plans to replace or augment, in the last 3 years?",null,30,"How many major repairs were done, on the Host equipment or the part of the system the measure plans to replace or augment, in the last 3 years?",null,30,"How many major repairs were done, on the Host equipment or the part of the system the measure plans to replace or augment, in the last 3 years?",null,30,"How many major repairs were done, on the Host equipment or the part of the system the measure plans to replace or augment, in the last 3 years?",null,30,"How many major repairs were done, on the Host equipment or the part of the system the measure plans to replace or augment, in the last 3 years?",null,30,"How many major repairs were done, on the Host equipment or the part of the system the measure plans to replace or augment, in the last 3 years?",null,30,"How many major repairs were done, on the Host equipment or the part of the system the measure plans to replace or augment, in the last 3 years?",null,30,"How many major repairs were done, on the Host equipment or the part of the system the measure plans to replace or augment, in the last 3 years?",null,30,"How many major repairs were done, on the Host equipment or the part of the system the measure plans to replace or augment, in the last 3 years?",null,30,"How many major repairs were done, on the Host equipment or the part of the system the measure plans to replace or augment, in the last 3 years?",null,30,"How many major repairs were done, on the Host equipment or the part of the system the measure plans to replace or augment, in the last 3 years?",null,30,"How many major repairs were done, on the Host equipment or the part of the system the measure plans to replace or augment, in the last 3 years?",null,30,"How many major repairs were done, on the Host equipment or the part of the system the measure plans to replace or augment, in the last 3 years?",null,30,"How many major repairs were done, on the Host equipment or the part of the system the measure plans to replace or augment, in the last 3 years?"]
[]
[]
[31,"What is the age of the Host equipment or the part of the system the measure plans to replace or augment and are there any plans to replace these equipment in the near-term?",null,31,"What is the age of the Host equipment or the part of the system the measure plans to replace or augment and are there any plans to replace these equipment in the near-term?",null,31,"What is the age of the Host equipment or the part of the system the measure plans to replace or augment and are there any plans to replace these equipment in the near-term?",null,31,"What is the age of the Host equipment or the part of the system the measure plans to replace or augment and are there any plans to replace these equipment in the near-term?",null,31,"What is the age of the Host equipment or the part of the system the measure plans to replace or augment and are there any plans to replace these equipment in the near-term?",null,31,"What is the age of the Host equipment or the part of the system the measure plans to replace or augment and are there any plans to replace these equipment in the near-term?",null,31,"What is the age of the Host equipment or the part of the system the measure plans to replace or augment and are there any plans to replace these equipment in the near-term?",null,31,"What is the age of the Host equipment or the part of the system the measure plans to replace or augment and are there any plans to replace these equipment in the near-term?",null,31,"What is the age of the Host equipment or the part of the system the measure plans to replace or augment and are there any plans to replace these equipment in the near-term?",null,31,"What is the age of the Host equipment or the part of the system the measure plans to replace or augment and are there any plans to replace these equipment in the near-term?",null,31,"What is the age of the Host equipment or the part of the system the measure plans to replace or augment and are there any plans to replace these equipment in the near-term?",null,31,"What is the age of the Host equipment or the part of the system the measure plans to replace or augment and are there any plans to replace these equipment in the near-term?",null,31,"What is the age of the Host equipment or the part of the system the measure plans to replace or augment and are there any plans to replace these equipment in the near-term?",null,31,"What is the age of the Host equipment or the part of the system the measure plans to replace or augment and are there any plans to replace these equipment in the near-term?",null,31,"What is the age of the Host equipment or the part of the system the measure plans to replace or augment and are there any plans to replace these equipment in the near-term?"]
[]
[]
["COMPLETE 32-33 IF QUESTION 1 IS AN \"NR\" INSTALLATION TYPE",null,null,"COMPLETE 32-33 IF QUESTION 1 IS AN \"NR\" INSTALLATION TYPE",null,null,"COMPLETE 32-33 IF QUESTION 1 IS AN \"NR\" INSTALLATION TYPE",null,null,"COMPLETE 32-33 IF QUESTION 1 IS AN \"NR\" INSTALLATION TYPE",null,null,"COMPLETE 32-33 IF QUESTION 1 IS AN \"NR\" INSTALLATION TYPE",null,null,"COMPLETE 32-33 IF QUESTION 1 IS AN \"NR\" INSTALLATION TYPE",null,null,"COMPLETE 32-33 IF QUESTION 1 IS AN \"NR\" INSTALLATION TYPE",null,null,"COMPLETE 32-33 IF QUESTION 1 IS AN \"NR\" INSTALLATION TYPE",null,null,"COMPLETE 32-33 IF QUESTION 1 IS AN \"NR\" INSTALLATION TYPE",null,null,"COMPLETE 32-33 IF QUESTION 1 IS AN \"NR\" INSTALLATION TYPE",null,null,"COMPLETE 32-33 IF QUESTION 1 IS AN \"NR\" INSTALLATION TYPE",null,null,"COMPLETE 32-33 IF QUESTION 1 IS AN \"NR\" INSTALLATION TYPE",null,null,"COMPLETE 32-33 IF QUESTION 1 IS AN \"NR\" INSTALLATION TYPE",null,null,"COMPLETE 32-33 IF QUESTION 1 IS AN \"NR\" INSTALLATION TYPE",null,null,"COMPLETE 32-33 IF QUESTION 1 IS AN \"NR\" INSTALLATION TYPE"]
[32,"Describe or state the Title 24 Baseline for the NR Measure Application Type. If Title 24 is not applicable, describe or state the Standard Practice Baseline as determined/identified in accordance with ISP Guidance document (available via https://www.cpuc.ca.gov/industries-and-topics/electrical-energy/demand-side-management/energy-efficiency/ex-ante-review-custom-projects)?",null,32,"Describe or state the Title 24 Baseline for the NR Measure Application Type. If Title 24 is not applicable, describe or state the Standard Practice Baseline as determined/identified in accordance with ISP Guidance document (available via https://www.cpuc.ca.gov/industries-and-topics/electrical-energy/demand-side-management/energy-efficiency/ex-ante-review-custom-projects)?",null,32,"Describe or state the Title 24 Baseline for the NR Measure Application Type. If Title 24 is not applicable, describe or state the Standard Practice Baseline as determined/identified in accordance with ISP Guidance document (available via https://www.cpuc.ca.gov/industries-and-topics/electrical-energy/demand-side-management/energy-efficiency/ex-ante-review-custom-projects)?",null,32,"Describe or state the Title 24 Baseline for the NR Measure Application Type. If Title 24 is not applicable, describe or state the Standard Practice Baseline as determined/identified in accordance with ISP Guidance document (available via https://www.cpuc.ca.gov/industries-and-topics/electrical-energy/demand-side-management/energy-efficiency/ex-ante-review-custom-projects)?",null,32,"Describe or state the Title 24 Baseline for the NR Measure Application Type. If Title 24 is not applicable, describe or state the Standard Practice Baseline as determined/identified in accordance with ISP Guidance document (available via https://www.cpuc.ca.gov/industries-and-topics/electrical-energy/demand-side-management/energy-efficiency/ex-ante-review-custom-projects)?",null,32,"Describe or state the Title 24 Baseline for the NR Measure Application Type. If Title 24 is not applicable, describe or state the Standard Practice Baseline as determined/identified in accordance with ISP Guidance document (available via https://www.cpuc.ca.gov/industries-and-topics/electrical-energy/demand-side-management/energy-efficiency/ex-ante-review-custom-projects)?",null,32,"Describe or state the Title 24 Baseline for the NR Measure Application Type. If Title 24 is not applicable, describe or state the Standard Practice Baseline as determined/identified in accordance with ISP Guidance document (available via https://www.cpuc.ca.gov/industries-and-topics/electrical-energy/demand-side-management/energy-efficiency/ex-ante-review-custom-projects)?",null,32,"Describe or state the Title 24 Baseline for the NR Measure Application Type. If Title 24 is not applicable, describe or state the Standard Practice Baseline as determined/identified in accordance with ISP Guidance document (available via https://www.cpuc.ca.gov/industries-and-topics/electrical-energy/demand-side-management/energy-efficiency/ex-ante-review-custom-projects)?",null,32,"Describe or state the Title 24 Baseline for the NR Measure Application Type. If Title 24 is not applicable, describe or state the Standard Practice Baseline as determined/identified in accordance with ISP Guidance document (available via https://www.cpuc.ca.gov/industries-and-topics/electrical-energy/demand-side-management/energy-efficiency/ex-ante-review-custom-projects)?",null,32,"Describe or state the Title 24 Baseline for the NR Measure Application Type. If Title 24 is not applicable, describe or state the Standard Practice Baseline as determined/identified in accordance with ISP Guidance document (available via https://www.cpuc.ca.gov/industries-and-topics/electrical-energy/demand-side-management/energy-efficiency/ex-ante-review-custom-projects)?",null,32,"Describe or state the Title 24 Baseline for the NR Measure Application Type. If Title 24 is not applicable, describe or state the Standard Practice Baseline as determined/identified in accordance with ISP Guidance document (available via https://www.cpuc.ca.gov/industries-and-topics/electrical-energy/demand-side-management/energy-efficiency/ex-ante-review-custom-projects)?",null,32,"Describe or state the Title 24 Baseline for the NR Measure Application Type. If Title 24 is not applicable, describe or state the Standard Practice Baseline as determined/identified in accordance with ISP Guidance document (available via https://www.cpuc.ca.gov/industries-and-topics/electrical-energy/demand-side-management/energy-efficiency/ex-ante-review-custom-projects)?",null,32,"Describe or state the Title 24 Baseline for the NR Measure Application Type. If Title 24 is not applicable, describe or state the Standard Practice Baseline as determined/identified in accordance with ISP Guidance document (available via https://www.cpuc.ca.gov/industries-and-topics/electrical-energy/demand-side-management/energy-efficiency/ex-ante-review-custom-projects)?",null,32,"Describe or state the Title 24 Baseline for the NR Measure Application Type. If Title 24 is not applicable, describe or state the Standard Practice Baseline as determined/identified in accordance with ISP Guidance document (available via https://www.cpuc.ca.gov/industries-and-topics/electrical-energy/demand-side-management/energy-efficiency/ex-ante-review-custom-projects)?",null,32,"Describe or state the Title 24 Baseline for the NR Measure Application Type. If Title 24 is not applicable, describe or state the Standard Practice Baseline as determined/identified in accordance with ISP Guidance document (available via https://www.cpuc.ca.gov/industries-and-topics/electrical-energy/demand-side-management/energy-efficiency/ex-ante-review-custom-projects)?"]
[]
[]
[33,"Describe how the to-code or to-Standard Practice Baseline savings from the measure will be calculated and disaggregated from the project savings.",null,33,"Describe how the To-Code or To-Standard Practice Baseline savings from the measure will be calculated and disaggregated from the project savings.",null,33,"Describe how the To-Code or To-Standard Practice Baseline savings from the measure will be calculated and disaggregated from the project savings.",null,33,"Describe how the To-Code or To-Standard Practice Baseline savings from the measure will be calculated and disaggregated from the project savings.",null,33,"Describe how the To-Code or To-Standard Practice Baseline savings from the measure will be calculated and disaggregated from the project savings.",null,33,"Describe how the To-Code or To-Standard Practice Baseline savings from the measure will be calculated and disaggregated from the project savings.",null,33,"Describe how the To-Code or To-Standard Practice Baseline savings from the measure will be calculated and disaggregated from the project savings.",null,33,"Describe how the To-Code or To-Standard Practice Baseline savings from the measure will be calculated and disaggregated from the project savings.",null,33,"Describe how the To-Code or To-Standard Practice Baseline savings from the measure will be calculated and disaggregated from the project savings.",null,33,"Describe how the To-Code or To-Standard Practice Baseline savings from the measure will be calculated and disaggregated from the project savings.",null,33,"Describe how the To-Code or To-Standard Practice Baseline savings from the measure will be calculated and disaggregated from the project savings.",null,33,"Describe how the To-Code or To-Standard Practice Baseline savings from the measure will be calculated and disaggregated from the project savings.",null,33,"Describe how the To-Code or To-Standard Practice Baseline savings from the measure will be calculated and disaggregated from the project savings.",null,33,"Describe how the To-Code or To-Standard Practice Baseline savings from the measure will be calculated and disaggregated from the project savings.",null,33,"Describe how the To-Code or To-Standard Practice Baseline savings from the measure will be calculated and disaggregated from the project savings."]
[]
[]
["COMPLETE 34 IF QUESTION 1 IS A \"BRO\" INSTALLATION TYPE",null,null,"COMPLETE 34 IF QUESTION 1 IS A \"BRO\" INSTALLATION TYPE",null,null,"COMPLETE 34 IF QUESTION 1 IS A \"BRO\" INSTALLATION TYPE",null,null,"COMPLETE 34 IF QUESTION 1 IS A \"BRO\" INSTALLATION TYPE",null,null,"COMPLETE 34 IF QUESTION 1 IS A \"BRO\" INSTALLATION TYPE",null,null,"COMPLETE 34 IF QUESTION 1 IS A \"BRO\" INSTALLATION TYPE",null,null,"COMPLETE 34 IF QUESTION 1 IS A \"BRO\" INSTALLATION TYPE",null,null,"COMPLETE 34 IF QUESTION 1 IS A \"BRO\" INSTALLATION TYPE",null,null,"COMPLETE 34 IF QUESTION 1 IS A \"BRO\" INSTALLATION TYPE",null,null,"COMPLETE 34 IF QUESTION 1 IS A \"BRO\" INSTALLATION TYPE",null,null,"COMPLETE 34 IF QUESTION 1 IS A \"BRO\" INSTALLATION TYPE",null,null,"COMPLETE 34 IF QUESTION 1 IS A \"BRO\" INSTALLATION TYPE",null,null,"COMPLETE 34 IF QUESTION 1 IS A \"BRO\" INSTALLATION TYPE",null,null,"COMPLETE 34 IF QUESTION 1 IS A \"BRO\" INSTALLATION TYPE",null,null,"COMPLETE 34 IF QUESTION 1 IS A \"BRO\" INSTALLATION TYPE"]
[34,"Does the Customer have a repair and maintenance plan in place for a minimum of three years? The plan activities must include continous feedback for the operator, detailed documentation of the operational interventions, and a detailed data tracking plan.",null,34,"Does the Customer have a repair and maintenance plan in place for a minimum of three years? The plan activities must include continous feedback for the operator, detailed documentation of the operational interventions, and a detailed data tracking plan.",null,34,"Does the Customer have a repair and maintenance plan in place for a minimum of three years? The plan activities must include continous feedback for the operator, detailed documentation of the operational interventions, and a detailed data tracking plan.",null,34,"Does the Customer have a repair and maintenance plan in place for a minimum of three years? The plan activities must include continous feedback for the operator, detailed documentation of the operational interventions, and a detailed data tracking plan.",null,34,"Does the Customer have a repair and maintenance plan in place for a minimum of three years? The plan activities must include continous feedback for the operator, detailed documentation of the operational interventions, and a detailed data tracking plan.",null,34,"Does the Customer have a repair and maintenance plan in place for a minimum of three years? The plan activities must include continous feedback for the operator, detailed documentation of the operational interventions, and a detailed data tracking plan.",null,34,"Does the Customer have a repair and maintenance plan in place for a minimum of three years? The plan activities must include continous feedback for the operator, detailed documentation of the operational interventions, and a detailed data tracking plan.",null,34,"Does the Customer have a repair and maintenance plan in place for a minimum of three years? The plan activities must include continous feedback for the operator, detailed documentation of the operational interventions, and a detailed data tracking plan.",null,34,"Does the Customer have a repair and maintenance plan in place for a minimum of three years? The plan activities must include continous feedback for the operator, detailed documentation of the operational interventions, and a detailed data tracking plan.",null,34,"Does the Customer have a repair and maintenance plan in place for a minimum of three years? The plan activities must include continous feedback for the operator, detailed documentation of the operational interventions, and a detailed data tracking plan.",null,34,"Does the Customer have a repair and maintenance plan in place for a minimum of three years? The plan activities must include continous feedback for the operator, detailed documentation of the operational interventions, and a detailed data tracking plan.",null,34,"Does the Customer have a repair and maintenance plan in place for a minimum of three years? The plan activities must include continous feedback for the operator, detailed documentation of the operational interventions, and a detailed data tracking plan.",null,34,"Does the Customer have a repair and maintenance plan in place for a minimum of three years? The plan activities must include continous feedback for the operator, detailed documentation of the operational interventions, and a detailed data tracking plan.",null,34,"Does the Customer have a repair and maintenance plan in place for a minimum of three years? The plan activities must include continous feedback for the operator, detailed documentation of the operational interventions, and a detailed data tracking plan.",null,34,"Does the Customer have a repair and maintenance plan in place for a minimum of three years? The plan activities must include continous feedback for the operator, detailed documentation of the operational interventions, and a detailed data tracking plan."]

{"sheet":"Non-EE Drivers","index":3,"n_rows":25,"n_cols":2,"rows_kept":25,"cut":false,"hidden":false,"merged":[]}
[null,"Non-EE Drivers"]
["1)","Intent to mitigate existing equipmment spare parts supply shortage"]
["2)","Intent to address Safety Concerns"]
["3)","Intent to reduce Maintenance Cost"]
["4)","Intent to address Imminent failure - Predictive Maintenance Findings"]
["5)","Intent to address Age of Equipment Concerns - Increased probability of failure"]
["6)","Intent to address Poor Equipment Performance"]
["7)","Intent to address Increased Repairs - Reliability Issues"]
["8)","Intent to Reduce Level of Service"]
["9)","Intent to address Shortage of Technology Expertise"]
["10)","Intent due to Scheduled Replacement - Company Policy"]
["11)","Intent due to Engineering Design Requirement (from Customer's Consultant recommendations)"]
["12)","Intent to use of existing equipment as supply for Spare Parts"]
["13)","Intent due to Vendor/Manufacturer, other 3rd Party recommendations"]
["14)","Intent to attain Uniformity of Parts (spares) - similar equipment already at Customer's site"]
["15)","Intent to address Operational Deficiencies - i.e. unable to meet low or high loads"]
["16)","Intent on Going Green / Being Sustainable"]
["17)","Intent to increase or expand Capacity/Production (current for future)"]
["18)","Intent to address Operational Changes/Schedule Changes"]
["19)","Intent to address Urgently Required Level of Service (per user request)"]
["20)","Intent to attain N+1 Requirement (Backup - Improved reliability)"]
["21)","Intent to increase product quality"]
["22)","Intent to comply with Existing or Upcoming Government Regulations"]
["23)","Intent to increase quality of environmental conditions; i.e. increase in IAQ"]
["24)","Other"]

{"sheet":"Showstoppers","index":4,"n_rows":26,"n_cols":2,"rows_kept":26,"cut":false,"hidden":false,"merged":[[20,1,20,5],[18,1,18,5]]}
[null,"Showstoppers"]
["1)","Load Shifting measure"]
["2) ","Fuel Substitution measure"]
["3)","Installation of On-site Power Generation"]
["4)","Curtailment of Operations, Decommissioning of equipment measure"]
["5)","Transfer of Operations measure"]
["6)","Compliance with Non-energy related regulations or Code requirements"]
["7)","Installation of Standard Practice Measures"]
["8)","Reduction in the Level of Service"]
["9)","Installation of non-permanent equipment"]
["10)","Replaced equipment to be retained after implementation"]
["11)","Ineligible Repair or Maintenance Measure"]
["12)","Regressive Baseline used"]
["13)","Incremental Measure Cost (IMC) of the measure is negative"]
["14)","Equipment installation commenced before incentive offer signed and countersigned"]
["15)","Equipment ordered before application documentation, including savings estimates and cost submitted"]
["16)","Equipment ordered without PA approval to proceed"]
["17)","Non-automated changes, manual operation of equipment"]
["18)","Capital budget allocated (budget request and approval, in maintenance/operations budget) to implement the measures before PA first influencing Customer"]
["19)","Missing Customer Affidavit, E-5115 requirements not met"]
["20)","Missing supporting documentation that demonstrate the Implementer and PA's role in influencing Customer or that the Developer's/Implementer's initial contact was the primary impetus for the Customer to implement each Measure; i.e. Letters, Memos, Emails, Real-time event documents as evidence"]
["21)","Installation or implementation of nonpersistent measure"]
["22)","Other CPUC/PA Policy, Decision, Resolution, Directive contradictions/violations"]
["23)","Simple Payback (after incentives) is higher than the Measure EUL"]
["24)","Simple Payback (before or after incentives) is higher than the Customer's Financial Criteria"]
["25)","Non-EE Driver(s) exists that is the impetus for the measure to be implemented"]

{"sheet":"Dropdowns","index":5,"n_rows":27,"n_cols":14,"rows_kept":27,"cut":false,"hidden":true,"merged":[]}
[null,"Project Impacts","Financial Hurdles","Project Priority","Project Developer Type","EE Project Type","Customer Category","YES/NO","Program Type","Risk Level","Risk ","Explanation",null,"DEER Building Type"]
[null,"FLAG !","Payback Years","LOW","--Select--","Accelerated Replacement (AR)","--Select--","--Select--","--Select--","ACCEPTABLE: No Issues/Risk Identified",0,"At the time of early screening,; no identifiable risks or issues that can significantly hinder, delay or negatively impact the project during technical review were identified based on project scope details as supplied by the applicant/customer or project developer.",null,"--Select--"]
[null,null,"Return on Investment (ROI)","MED","TradePro","Behaviorial, RCx, Operational (BRO)","Commercial ","YES","Customized Incentives","ACCEPTABLE: Minimal Issues/Risks",0.3,"At the time of early screening,; limited risks or issues have been identified that may delay or negatively impact the project during technical review were identified based on project scope details as supplied by the applicant/customer or project developer.",null,"Agricultural"]
[null,null,"Net Present Value (NPV)","HIGH","Third Party Implementer","Normal Replacement (NR) ","Government","NO","RCx/BRO Incentives","\"50/50\" - Moderate Issues/Risk",0.5,"At the time of early screening,; risks or issues have been identified that can hinder, delay or negatively impact the project during technical review were identified based on project scope details as supplied by the applicant/customer or project developer.",null,"Assembly"]
[null,null,"Other Metric",null,"SCE Account Rep","Add-On Equipment (AOE)","College/University",null,"Public Sector","NOT ACCEPTABLE:  Showstopper Issues/High Risk",0.7,"At the time of early screening,; major risks or \"show stopper\" issues have been identified that will significantly hinder, delay or the project during technical review were identified based on project scope details as supplied by the applicant/customer or project developer.",null,"Education - Primary School"]
[null,null,null,null,"SCE Field Engineer","New Construction (NC)",null,null,"Third Party Implemented",null,null,null,null,"Education - Secondary School"]
[null,null,null,null,"SCE Hydraulic Services","Building Weatherization (BW)",null,null,"Savings by Design",null,null,null,null,"Education - Relocatable Classroom"]
[null,null,"--Select--",null,"Customer",null,null,null,null,null,null,"Category","Description ","Education - Community College"]
[null,null,1,null,null,null,null,null,null,null,null,"Industry Standard Practice","Applicant is planning to install ","Education - University"]
[null,null,2,null,null,null,null,null,null,null,null,"Program Influence",null,"Health/Medical - Hospital"]
[null,null,3,null,null,null,null,null,null,null,null,"Measure/Project Eligibility",null,"Health/Medical - Nursing Home"]
[null,null,4,null,null,null,null,null,null,null,null,"Free Ridership",null,"Health/Medical - Clinic"]
[null,null,5,null,null,null,null,null,null,null,null,"Program Rules/Policy",null,"Lodging - Hotel"]
[null,null,6,null,null,null,null,null,null,null,null,null,null,"Lodging - Guest Rooms"]
[null,null,7,null,null,null,null,null,null,null,null,null,null,"Lodging - Motel"]
[null,null,8,null,null,null,null,null,null,null,null,null,null,"Miscellaneous Commercial"]
[null,null,9,null,null,null,null,null,null,null,null,null,null,"Office - Large"]
[null,null,10,null,null,null,null,null,null,null,null,null,null,"Office - Small"]
[null,null,null,null,null,null,null,null,null,null,null,null,null,"Restaurant - Fast Food"]
[null,null,null,null,null,null,null,null,null,null,null,null,null,"Restaurant - Site Down"]
[null,null,null,null,null,null,null,null,null,null,null,null,null,"Retail - Multistory Large"]
[null,null,null,null,null,null,null,null,null,null,null,null,null,"Retail - Single-Story Large"]
[null,null,null,null,null,null,null,null,null,null,null,null,null,"Retail - Small"]
[null,null,null,null,null,null,null,null,null,null,null,null,null,"Storage - Conditioned"]
[null,null,null,null,null,null,null,null,null,null,null,null,null,"Storage - Unconditioned"]
[null,null,null,null,null,null,null,null,null,null,null,null,null,"Transportation - Communication - Utilities"]
[null,null,null,null,null,null,null,null,null,null,null,null,null,"Warehouse - Refrigerated"]